{"text_format":"1","workbook":"xlsx","n_sheets":33,"sheets":["License","Summary","Average ongoing charges","Instructions","Eligibility of fund","Portfolio","O1","O2","O3","O4","O5-6","O7-9","P1","O10","O11-12","O13","P2","O14","P3","P3 calculation","P4","P5","P6","O15","P7","P8","O16","O17-18","O19-20","O21","O22-24","O25","O25 calculation"],"not_rendered":{"charts":0,"images":41,"macros":1,"external_links":0,"defined_names":0,"comments":2,"pivot_tables":0},"unopened":[],"bounds":{"document_bytes":16777216,"sheet_cells":100000,"rows_first":2000,"rows_last":500,"rows_between":2000,"halvings":0,"cell_chars":16384,"cell_head_chars":4096},"cells_cut":0,"cells_raw":0,"read":"whole","date_system":"1900"}

{"sheet":"License","index":0,"n_rows":18,"n_cols":7,"rows_kept":18,"cut":false,"hidden":true,"merged":[]}
["License information - filled out by Nordic Ecolabelling"]
["PG - 101 Investment Funds"]
["Version 1.0 • 14 June 2017 – 30 June 2020"]
[]
["Fund company (applicant)"]
["Fund manager (if applicable)"]
["Email, contact person"]
["Phone number, contact person"]
["Type of application"]
["Date of application"]
["Case number"]
["License number"]
["Fund ISIN code"]
["Fund information","Fund name:","Local name SE","Local name FI","Local name DK","Local name NO","Local name IS"]
[]
["Acceptance date:"]
["Evaluator: "]
["Reviewer: "]

{"sheet":"Summary","index":1,"n_rows":27,"n_cols":5,"rows_kept":27,"cut":false,"hidden":true,"merged":[]}
["Summary",null,"Evaluation"]
[null,"Applicant","Evaluator","Reviewer","Comments"]
["O1",{"$f":"((INDIRECT(\"'\"&A3&\"'!C2\")))","v":"Please select status"},{"$f":"((INDIRECT(\"'\"&A3&\"'!C3\")))","v":"Please select status"},{"$f":"(INDIRECT(\"'\"&A3&\"'!C4\"))","v":"Please select status"},{"$f":"IF(INDIRECT(\"'\"&A3&\"'!B8\")=0,\"\",INDIRECT(\"'\"&A3&\"'!B8\"))","v":""}]
["O2","Please select status","Please select status","Please select status",""]
["O3","Please select status","Please select status","Please select status",""]
["O4","Please select status","Please select status","Please select status",""]
["O5-6",{"$f":"((INDIRECT(\"'\"&A7&\"'!C2\")))","v":"Please select status"},"Please select status","Please select status",""]
["O7-9","Please select status","Please select status","Please select status",""]
["P1","Please select status","Please select status","Please select status",""]
["O10","Please select status","Please select status","Please select status",""]
["O11-12","Please select status","Please select status","Please select status",""]
["O13","Please select status","Please select status","Please select status",""]
["P2",{"$f":"((INDIRECT(\"'\"&A13&\"'!C2\")))","v":"Please select status"},{"$f":"((INDIRECT(\"'\"&A13&\"'!C3\")))","v":"Please select status"},{"$f":"(INDIRECT(\"'\"&A13&\"'!C4\"))","v":"Please select status"},{"$f":"IF(INDIRECT(\"'\"&A13&\"'!B8\")=0,\"\",INDIRECT(\"'\"&A13&\"'!B8\"))","v":""}]
["O14","Please select status","Please select status","Please select status",""]
["P3","Please select status","Please select status","Please select status",""]
["P4","Please select status","Please select status","Please select status",""]
["P5","Please select status","Please select status","Please select status",""]
["P6","Please select status","Please select status","Please select status",""]
["O15","Please select status","Please select status","Please select status",""]
["P7","Please select status","Please select status","Please select status",""]
["P8","Please select status","Please select status","Please select status",""]
["O16","Please select status","Please select status","Please select status",""]
["O17-18","Please select status","Please select status","Please select status",""]
["O19-20","Please select status","Please select status","Please select status",""]
["O21","Please select status","Please select status","Please select status",""]
["O22-24","Please select status","Please select status","Please select status",""]
["O25",{"$f":"((INDIRECT(\"'\"&A27&\"'!C2\")))","v":"Please select status"},{"$f":"((INDIRECT(\"'\"&A27&\"'!C3\")))","v":"Please select status"},{"$f":"(INDIRECT(\"'\"&A27&\"'!C4\"))","v":"Please select status"},{"$f":"IF(INDIRECT(\"'\"&A27&\"'!B8\")=0,\"\",INDIRECT(\"'\"&A27&\"'!B8\"))","v":""}]

{"sheet":"Average ongoing charges","index":2,"n_rows":9,"n_cols":3,"rows_kept":9,"cut":false,"hidden":true,"merged":[[0,1,0,9]]}
["Fund name"]
["Share class name"]
["Share class ISIN code"]
["Ongoing charges (%)",1.4999999999999999E-2,0.01]
["AUM in the Nordics (m€)",1,2]
["AUM outside the Nordics (m€)"]
[]
["Total Nordic AUM of fund (m€)",{"$f":"SUM(B5:J5)","v":3}]
["Average ongoing charges, fund (%)",{"$f":"SUMPRODUCT(B4:K4,B5:K5)/B8","v":1.1666666666666667E-2}]

{"sheet":"Instructions","index":3,"n_rows":2,"n_cols":1,"rows_kept":2,"cut":false,"hidden":false,"merged":[[0,0,0,2],[1,0,1,2],[19,1,19,2],[20,1,20,2],[15,0,15,2],[16,0,16,2]]}
["INSTRUCTIONS ON HOW TO FILL OUT THE CHECKLIST"]
["The required documentation is given on the left-hand side of each sheet. Please describe how the fund complies with the requirement in question on the right-hand side of the sheet. Moreover, refer to documents that verify that the fund is compliant with the requirement. The same document is often relevant for several requirements. Note that there is an additional calculation sheet for requirement P3 and a portfolio template that can be used as a part of the documentation. \n\nIf the fund has share classes with a management fee below 1.00 %, please unhide and fill out the sheet \"Average ongoing charges\".\n                                                                                                                                                                                                                                                                                                                                                                                                                                                                                                                                                                                                                                                                                                                                                                                                                                  Should you have any questions about the checklist, please do not hesitate to contact the fund staff at Nordic Ecolabelling:\nSebastian Högnabba, sebastian.hognabba@svanen.se, +46 702 765 188\nPer Sandell, per.sandell@svanen.se, +46 708 66 17 63"]

{"sheet":"Eligibility of fund","index":4,"n_rows":18,"n_cols":5,"rows_kept":18,"cut":false,"hidden":false,"merged":[[16,0,16,3],[0,0,9,0],[4,1,4,3],[5,1,5,3],[6,1,6,3],[7,1,7,3],[8,1,8,3],[9,1,9,3],[10,0,10,3],[12,0,12,3],[13,0,13,3],[14,0,14,3],[15,0,15,3]]}
[null,"Does the product/service fulfil the requirement?",null,null,"Please select status"]
[null,"Applicant:","Please select status",null,"Yes"]
[null,"Evaluator:","Please select status",null,"No"]
[null,"Reviewer:","Please select status",null,"Documentation missing"]
[null,"Comments from the applicant (on delivered documentation)  ",null,null,"N.A."]
[null,"Describe how the fund fulfils the product group definition and refer to the document(s) that verifies this."]
[null,"Comments from the evaluator (for the summary of requirements)"]
[]
[null,"Comments from the evaluator (on delivered documentation)"]
[]
["Documentation:"]
["Names of the documents that verify compliance with the requirement (filled out by the applicant) (filled out by the applicant)"]
["Examplefile_date.pdf"]
[]
[]
[]
[]
[null,null,{"$f":"IFERROR(VLOOKUP(\"activesheetname\",#REF!,3),\"\")","v":""},{"$f":"IFERROR(VLOOKUP(\"activesheetname\",#REF!,4),\"\")","v":""},"No"]

{"sheet":"Portfolio","index":5,"n_rows":2500,"n_cols":26,"rows_kept":2500,"cut":false,"hidden":false,"merged":[[0,8,0,9],[4,0,8,3],[0,0,3,3],[5,8,5,9],[7,4,8,6],[7,7,8,7],[6,4,6,6],[2,6,3,6],[2,7,3,7],[5,4,5,7],[0,4,0,5],[0,6,0,7]]}
["Portfolio and holding information\nFill out this sheet with data connected to O2, O3, P4, O13, P2 and O14",null,null,null,"O2",null,"O3",null,"P4",null,null,null,null,null,null,null,null,null,null,null,null,null,null,null,"Internally","Yes"]
[null,null,null,null,"Equity",{"$f":"SUMIF(E13:E2500,\"Equity\",$D$13:$D$2500)","v":0},"Direct",{"$f":"SUMIF(F13:F2500,\"Direct\",$D$13:$D$2500)","v":0},"Exclusion criteria",{"$f":"SUMIF(G13:G2500,\"Exclusion criteria\",$D$13:$D$2500)","v":0},null,null,null,null,null,null,null,null,null,null,null,null,null,null,"Externally","No"]
[null,null,null,null,"Corporate debt",{"$f":"SUMIF(E13:E2500,\"Corporate debt\",$D$13:$D$2500)","v":0},"Indirect",{"$f":"SUMIF(F13:F2500,\"Indirect\",$D$13:$D$2500)","v":0},"Inclusion criteria",{"$f":"SUMIF(G13:G2500,\"Inclusion criteria\",$D$13:$D$2500)","v":0},null,null,null,null,null,null,null,null,null,null,null,null,null,null,"Both"]
[null,null,null,null,"Qualified green bonds",{"$f":"SUMIF(E13:E2500,\"Qualified green bonds\",$D$13:$D$2500)","v":0},null,null,"Both",{"$f":"SUMIF(G13:G2500,\"Both\",$D$13:$D$2500)","v":0}]
["This sheet can be used to report and maintain information about portfolio holdings necessary to fulfil the Nordic Swan Ecolabel requirements. Feel free to use only part of the sheet or to just study it as a source of inspiration for your own data files. \n\nStart by filling out the box General fund data. After that, fill out column A, B and D and then work your way to the right. You can also add columns that are relevant for your application."]
[null,null,null,null,"O2 / O13 / P2 / O14",null,null,null,"General fund data"]
[null,null,null,null,"% of ESG analysis done within the last year",null,null,{"$f":"COUNTIF(I13:I2500,\">=\"&J9-\"365\")/$J$8","v":0},"Portfolio value",1000]
[null,null,null,null,"% of holdings with strong ESG practices",null,null,{"$f":"SUMIF(L13:L2500,\"Yes\",$D$13:$D$1000)","v":0},"No. of holdings",100]
[null,null,null,null,null,null,null,null,"Date",{"$f":"EOMONTH(TODAY(),-1)","v":"2018-12-31"}]
[]
["O2","O2","O2","O2/O13/P2","O2/PGD","O3","P4","O13","O13","O13 (if internal)","O13 (if internal)","O14"]
["Name of holding","ISIN","Market cap","% share of portfolio","Type of security","Type of holding","Indirect holdings pass","ESG analysis performed","Date of ESG analysis","Publishes CSR policy","Reports CSR performance","Strong ESG practices","Please add columns here for additional information"]
[null,null,{"$f":"D13*$J$7","v":0}]
[null,null,0]
[null,null,0]
[null,null,0]
[null,null,0]
[null,null,0]
[null,null,0]
[null,null,0]
[null,null,0]
[null,null,0]
[null,null,0]
[null,null,0]
[null,null,0]
[null,null,0]
[null,null,0]
[null,null,0]
[null,null,0]
[null,null,0]
[null,null,0]
[null,null,0]
[null,null,0]
[null,null,0]
[null,null,0]
[null,null,0]
[null,null,0]
[null,null,0]
[null,null,0]
[null,null,0]
[null,null,0]
[null,null,0]
[null,null,0]
[null,null,0]
[null,null,0]
[null,null,0]
[null,null,0]
[null,null,0]
[null,null,0]
[null,null,0]
[null,null,0]
[null,null,0]
[null,null,0]
[null,null,0]
[null,null,0]
[null,null,0]
[null,null,0]
[null,null,0]
[null,null,0]
[null,null,0]
[null,null,0]
[null,null,0]
[null,null,0]
[null,null,0]
[null,null,0]
[null,null,0]
[null,null,0]
[null,null,0]
[null,null,0]
[null,null,0]
[null,null,0]
[null,null,0]
[null,null,0]
[null,null,0]
[null,null,0]
[null,null,0]
[null,null,{"$f":"D77*$J$7","v":0}]
[null,null,0]
[null,null,0]
[null,null,0]
[null,null,0]
[null,null,0]
[null,null,0]
[null,null,0]
[null,null,0]
[null,null,0]
[null,null,0]
[null,null,0]
[null,null,0]
[null,null,0]
[null,null,0]
[null,null,0]
[null,null,0]
[null,null,0]
[null,null,0]
[null,null,0]
[null,null,0]
[null,null,0]
[null,null,0]
[null,null,0]
[null,null,0]
[null,null,0]
[null,null,0]
[null,null,0]
[null,null,0]
[null,null,0]
[null,null,0]
[null,null,0]
[null,null,0]
[null,null,0]
[null,null,0]
[null,null,0]
[null,null,0]
[null,null,0]
[null,null,0]
[null,null,0]
[null,null,0]
[null,null,0]
[null,null,0]
[null,null,0]
[null,null,0]
[null,null,0]
[null,null,0]
[null,null,0]
[null,null,0]
[null,null,0]
[null,null,0]
[null,null,0]
[null,null,0]
[null,null,0]
[null,null,0]
[null,null,0]
[null,null,0]
[null,null,0]
[null,null,0]
[null,null,0]
[null,null,0]
[null,null,0]
[null,null,0]
[null,null,0]
[null,null,{"$f":"D141*$J$7","v":0}]
[null,null,0]
[null,null,0]
[null,null,0]
[null,null,0]
[null,null,0]
[null,null,0]
[null,null,0]
[null,null,0]
[null,null,0]
[null,null,0]
[null,null,0]
[null,null,0]
[null,null,0]
[null,null,0]
[null,null,0]
[null,null,0]
[null,null,0]
[null,null,0]
[null,null,0]
[null,null,0]
[null,null,0]
[null,null,0]
[null,null,0]
[null,null,0]
[null,null,0]
[null,null,0]
[null,null,0]
[null,null,0]
[null,null,0]
[null,null,0]
[null,null,0]
[null,null,0]
[null,null,0]
[null,null,0]
[null,null,0]
[null,null,0]
[null,null,0]
[null,null,0]
[null,null,0]
[null,null,0]
[null,null,0]
[null,null,0]
[null,null,0]
[null,null,0]
[null,null,0]
[null,null,0]
[null,null,0]
[null,null,0]
[null,null,0]
[null,null,0]
[null,null,0]
[null,null,0]
[null,null,0]
[null,null,0]
[null,null,0]
[null,null,0]
[null,null,0]
[null,null,0]
[null,null,0]
[null,null,0]
[null,null,0]
[null,null,0]
[null,null,0]
[null,null,{"$f":"D205*$J$7","v":0}]
[null,null,0]
[null,null,0]
[null,null,0]
[null,null,0]
[null,null,0]
[null,null,0]
[null,null,0]
[null,null,0]
[null,null,0]
[null,null,0]
[null,null,0]
[null,null,0]
[null,null,0]
[null,null,0]
[null,null,0]
[null,null,0]
[null,null,0]
[null,null,0]
[null,null,0]
[null,null,0]
[null,null,0]
[null,null,0]
[null,null,0]
[null,null,0]
[null,null,0]
[null,null,0]
[null,null,0]
[null,null,0]
[null,null,0]
[null,null,0]
[null,null,0]
[null,null,0]
[null,null,0]
[null,null,0]
[null,null,0]
[null,null,0]
[null,null,0]
[null,null,0]
[null,null,0]
[null,null,0]
[null,null,0]
[null,null,0]
[null,null,0]
[null,null,0]
[null,null,0]
[null,null,0]
[null,null,0]
[null,null,0]
[null,null,0]
[null,null,0]
[null,null,0]
[null,null,0]
[null,null,0]
[null,null,0]
[null,null,0]
[null,null,0]
[null,null,0]
[null,null,0]
[null,null,0]
[null,null,0]
[null,null,0]
[null,null,0]
[null,null,0]
[null,null,{"$f":"D269*$J$7","v":0}]
[null,null,0]
[null,null,0]
[null,null,0]
[null,null,0]
[null,null,0]
[null,null,0]
[null,null,0]
[null,null,0]
[null,null,0]
[null,null,0]
[null,null,0]
[null,null,0]
[null,null,0]
[null,null,0]
[null,null,0]
[null,null,0]
[null,null,0]
[null,null,0]
[null,null,0]
[null,null,0]
[null,null,0]
[null,null,0]
[null,null,0]
[null,null,0]
[null,null,0]
[null,null,0]
[null,null,0]
[null,null,0]
[null,null,0]
[null,null,0]
[null,null,0]
[null,null,0]
[null,null,0]
[null,null,0]
[null,null,0]
[null,null,0]
[null,null,0]
[null,null,0]
[null,null,0]
[null,null,0]
[null,null,0]
[null,null,0]
[null,null,0]
[null,null,0]
[null,null,0]
[null,null,0]
[null,null,0]
[null,null,0]
[null,null,0]
[null,null,0]
[null,null,0]
[null,null,0]
[null,null,0]
[null,null,0]
[null,null,0]
[null,null,0]
[null,null,0]
[null,null,0]
[null,null,0]
[null,null,0]
[null,null,0]
[null,null,0]
[null,null,0]
[null,null,{"$f":"D333*$J$7","v":0}]
[null,null,0]
[null,null,0]
[null,null,0]
[null,null,0]
[null,null,0]
[null,null,0]
[null,null,0]
[null,null,0]
[null,null,0]
[null,null,0]
[null,null,0]
[null,null,0]
[null,null,0]
[null,null,0]
[null,null,0]
[null,null,0]
[null,null,0]
[null,null,0]
[null,null,0]
[null,null,0]
[null,null,0]
[null,null,0]
[null,null,0]
[null,null,0]
[null,null,0]
[null,null,0]
[null,null,0]
[null,null,0]
[null,null,0]
[null,null,0]
[null,null,0]
[null,null,0]
[null,null,0]
[null,null,0]
[null,null,0]
[null,null,0]
[null,null,0]
[null,null,0]
[null,null,0]
[null,null,0]
[null,null,0]
[null,null,0]
[null,null,0]
[null,null,0]
[null,null,0]
[null,null,0]
[null,null,0]
[null,null,0]
[null,null,0]
[null,null,0]
[null,null,0]
[null,null,0]
[null,null,0]
[null,null,0]
[null,null,0]
[null,null,0]
[null,null,0]
[null,null,0]
[null,null,0]
[null,null,0]
[null,null,0]
[null,null,0]
[null,null,0]
[null,null,{"$f":"D397*$J$7","v":0}]
[null,null,0]
[null,null,0]
[null,null,0]
[null,null,0]
[null,null,0]
[null,null,0]
[null,null,0]
[null,null,0]
[null,null,0]
[null,null,0]
[null,null,0]
[null,null,0]
[null,null,0]
[null,null,0]
[null,null,0]
[null,null,0]
[null,null,0]
[null,null,0]
[null,null,0]
[null,null,0]
[null,null,0]
[null,null,0]
[null,null,0]
[null,null,0]
[null,null,0]
[null,null,0]
[null,null,0]
[null,null,0]
[null,null,0]
[null,null,0]
[null,null,0]
[null,null,0]
[null,null,0]
[null,null,0]
[null,null,0]
[null,null,0]
[null,null,0]
[null,null,0]
[null,null,0]
[null,null,0]
[null,null,0]
[null,null,0]
[null,null,0]
[null,null,0]
[null,null,0]
[null,null,0]
[null,null,0]
[null,null,0]
[null,null,0]
[null,null,0]
[null,null,0]
[null,null,0]
[null,null,0]
[null,null,0]
[null,null,0]
[null,null,0]
[null,null,0]
[null,null,0]
[null,null,0]
[null,null,0]
[null,null,0]
[null,null,0]
[null,null,0]
[null,null,{"$f":"D461*$J$7","v":0}]
[null,null,0]
[null,null,0]
[null,null,0]
[null,null,0]
[null,null,0]
[null,null,0]
[null,null,0]
[null,null,0]
[null,null,0]
[null,null,0]
[null,null,0]
[null,null,0]
[null,null,0]
[null,null,0]
[null,null,0]
[null,null,0]
[null,null,0]
[null,null,0]
[null,null,0]
[null,null,0]
[null,null,0]
[null,null,0]
[null,null,0]
[null,null,0]
[null,null,0]
[null,null,0]
[null,null,0]
[null,null,0]
[null,null,0]
[null,null,0]
[null,null,0]
[null,null,0]
[null,null,0]
[null,null,0]
[null,null,0]
[null,null,0]
[null,null,0]
[null,null,0]
[null,null,0]
[null,null,0]
[null,null,0]
[null,null,0]
[null,null,0]
[null,null,0]
[null,null,0]
[null,null,0]
[null,null,0]
[null,null,0]
[null,null,0]
[null,null,0]
[null,null,0]
[null,null,0]
[null,null,0]
[null,null,0]
[null,null,0]
[null,null,0]
[null,null,0]
[null,null,0]
[null,null,0]
[null,null,0]
[null,null,0]
[null,null,0]
[null,null,0]
[null,null,{"$f":"D525*$J$7","v":0}]
[null,null,0]
[null,null,0]
[null,null,0]
[null,null,0]
[null,null,0]
[null,null,0]
[null,null,0]
[null,null,0]
[null,null,0]
[null,null,0]
[null,null,0]
[null,null,0]
[null,null,0]
[null,null,0]
[null,null,0]
[null,null,0]
[null,null,0]
[null,null,0]
[null,null,0]
[null,null,0]
[null,null,0]
[null,null,0]
[null,null,0]
[null,null,0]
[null,null,0]
[null,null,0]
[null,null,0]
[null,null,0]
[null,null,0]
[null,null,0]
[null,null,0]
[null,null,0]
[null,null,0]
[null,null,0]
[null,null,0]
[null,null,0]
[null,null,0]
[null,null,0]
[null,null,0]
[null,null,0]
[null,null,0]
[null,null,0]
[null,null,0]
[null,null,0]
[null,null,0]
[null,null,0]
[null,null,0]
[null,null,0]
[null,null,0]
[null,null,0]
[null,null,0]
[null,null,0]
[null,null,0]
[null,null,0]
[null,null,0]
[null,null,0]
[null,null,0]
[null,null,0]
[null,null,0]
[null,null,0]
[null,null,0]
[null,null,0]
[null,null,0]
[null,null,{"$f":"D589*$J$7","v":0}]
[null,null,0]
[null,null,0]
[null,null,0]
[null,null,0]
[null,null,0]
[null,null,0]
[null,null,0]
[null,null,0]
[null,null,0]
[null,null,0]
[null,null,0]
[null,null,0]
[null,null,0]
[null,null,0]
[null,null,0]
[null,null,0]
[null,null,0]
[null,null,0]
[null,null,0]
[null,null,0]
[null,null,0]
[null,null,0]
[null,null,0]
[null,null,0]
[null,null,0]
[null,null,0]
[null,null,0]
[null,null,0]
[null,null,0]
[null,null,0]
[null,null,0]
[null,null,0]
[null,null,0]
[null,null,0]
[null,null,0]
[null,null,0]
[null,null,0]
[null,null,0]
[null,null,0]
[null,null,0]
[null,null,0]
[null,null,0]
[null,null,0]
[null,null,0]
[null,null,0]
[null,null,0]
[null,null,0]
[null,null,0]
[null,null,0]
[null,null,0]
[null,null,0]
[null,null,0]
[null,null,0]
[null,null,0]
[null,null,0]
[null,null,0]
[null,null,0]
[null,null,0]
[null,null,0]
[null,null,0]
[null,null,0]
[null,null,0]
[null,null,0]
[null,null,{"$f":"D653*$J$7","v":0}]
[null,null,0]
[null,null,0]
[null,null,0]
[null,null,0]
[null,null,0]
[null,null,0]
[null,null,0]
[null,null,0]
[null,null,0]
[null,null,0]
[null,null,0]
[null,null,0]
[null,null,0]
[null,null,0]
[null,null,0]
[null,null,0]
[null,null,0]
[null,null,0]
[null,null,0]
[null,null,0]
[null,null,0]
[null,null,0]
[null,null,0]
[null,null,0]
[null,null,0]
[null,null,0]
[null,null,0]
[null,null,0]
[null,null,0]
[null,null,0]
[null,null,0]
[null,null,0]
[null,null,0]
[null,null,0]
[null,null,0]
[null,null,0]
[null,null,0]
[null,null,0]
[null,null,0]
[null,null,0]
[null,null,0]
[null,null,0]
[null,null,0]
[null,null,0]
[null,null,0]
[null,null,0]
[null,null,0]
[null,null,0]
[null,null,0]
[null,null,0]
[null,null,0]
[null,null,0]
[null,null,0]
[null,null,0]
[null,null,0]
[null,null,0]
[null,null,0]
[null,null,0]
[null,null,0]
[null,null,0]
[null,null,0]
[null,null,0]
[null,null,0]
[null,null,{"$f":"D717*$J$7","v":0}]
[null,null,0]
[null,null,0]
[null,null,0]
[null,null,0]
[null,null,0]
[null,null,0]
[null,null,0]
[null,null,0]
[null,null,0]
[null,null,0]
[null,null,0]
[null,null,0]
[null,null,0]
[null,null,0]
[null,null,0]
[null,null,0]
[null,null,0]
[null,null,0]
[null,null,0]
[null,null,0]
[null,null,0]
[null,null,0]
[null,null,0]
[null,null,0]
[null,null,0]
[null,null,0]
[null,null,0]
[null,null,0]
[null,null,0]
[null,null,0]
[null,null,0]
[null,null,0]
[null,null,0]
[null,null,0]
[null,null,0]
[null,null,0]
[null,null,0]
[null,null,0]
[null,null,0]
[null,null,0]
[null,null,0]
[null,null,0]
[null,null,0]
[null,null,0]
[null,null,0]
[null,null,0]
[null,null,0]
[null,null,0]
[null,null,0]
[null,null,0]
[null,null,0]
[null,null,0]
[null,null,0]
[null,null,0]
[null,null,0]
[null,null,0]
[null,null,0]
[null,null,0]
[null,null,0]
[null,null,0]
[null,null,0]
[null,null,0]
[null,null,0]
[null,null,{"$f":"D781*$J$7","v":0}]
[null,null,0]
[null,null,0]
[null,null,0]
[null,null,0]
[null,null,0]
[null,null,0]
[null,null,0]
[null,null,0]
[null,null,0]
[null,null,0]
[null,null,0]
[null,null,0]
[null,null,0]
[null,null,0]
[null,null,0]
[null,null,0]
[null,null,0]
[null,null,0]
[null,null,0]
[null,null,0]
[null,null,0]
[null,null,0]
[null,null,0]
[null,null,0]
[null,null,0]
[null,null,0]
[null,null,0]
[null,null,0]
[null,null,0]
[null,null,0]
[null,null,0]
[null,null,0]
[null,null,0]
[null,null,0]
[null,null,0]
[null,null,0]
[null,null,0]
[null,null,0]
[null,null,0]
[null,null,0]
[null,null,0]
[null,null,0]
[null,null,0]
[null,null,0]
[null,null,0]
[null,null,0]
[null,null,0]
[null,null,0]
[null,null,0]
[null,null,0]
[null,null,0]
[null,null,0]
[null,null,0]
[null,null,0]
[null,null,0]
[null,null,0]
[null,null,0]
[null,null,0]
[null,null,0]
[null,null,0]
[null,null,0]
[null,null,0]
[null,null,0]
[null,null,{"$f":"D845*$J$7","v":0}]
[null,null,0]
[null,null,0]
[null,null,0]
[null,null,0]
[null,null,0]
[null,null,0]
[null,null,0]
[null,null,0]
[null,null,0]
[null,null,0]
[null,null,0]
[null,null,0]
[null,null,0]
[null,null,0]
[null,null,0]
[null,null,0]
[null,null,0]
[null,null,0]
[null,null,0]
[null,null,0]
[null,null,0]
[null,null,0]
[null,null,0]
[null,null,0]
[null,null,0]
[null,null,0]
[null,null,0]
[null,null,0]
[null,null,0]
[null,null,0]
[null,null,0]
[null,null,0]
[null,null,0]
[null,null,0]
[null,null,0]
[null,null,0]
[null,null,0]
[null,null,0]
[null,null,0]
[null,null,0]
[null,null,0]
[null,null,0]
[null,null,0]
[null,null,0]
[null,null,0]
[null,null,0]
[null,null,0]
[null,null,0]
[null,null,0]
[null,null,0]
[null,null,0]
[null,null,0]
[null,null,0]
[null,null,0]
[null,null,0]
[null,null,0]
[null,null,0]
[null,null,0]
[null,null,0]
[null,null,0]
[null,null,0]
[null,null,0]
[null,null,0]
[null,null,{"$f":"D909*$J$7","v":0}]
[null,null,0]
[null,null,0]
[null,null,0]
[null,null,0]
[null,null,0]
[null,null,0]
[null,null,0]
[null,null,0]
[null,null,0]
[null,null,0]
[null,null,0]
[null,null,0]
[null,null,0]
[null,null,0]
[null,null,0]
[null,null,0]
[null,null,0]
[null,null,0]
[null,null,0]
[null,null,0]
[null,null,0]
[null,null,0]
[null,null,0]
[null,null,0]
[null,null,0]
[null,null,0]
[null,null,0]
[null,null,0]
[null,null,0]
[null,null,0]
[null,null,0]
[null,null,0]
[null,null,0]
[null,null,0]
[null,null,0]
[null,null,0]
[null,null,0]
[null,null,0]
[null,null,0]
[null,null,0]
[null,null,0]
[null,null,0]
[null,null,0]
[null,null,0]
[null,null,0]
[null,null,0]
[null,null,0]
[null,null,0]
[null,null,0]
[null,null,0]
[null,null,0]
[null,null,0]
[null,null,0]
[null,null,0]
[null,null,0]
[null,null,0]
[null,null,0]
[null,null,0]
[null,null,0]
[null,null,0]
[null,null,0]
[null,null,0]
[null,null,0]
[null,null,{"$f":"D973*$J$7","v":0}]
[null,null,0]
[null,null,0]
[null,null,0]
[null,null,0]
[null,null,0]
[null,null,0]
[null,null,0]
[null,null,0]
[null,null,0]
[null,null,0]
[null,null,0]
[null,null,0]
[null,null,0]
[null,null,0]
[null,null,0]
[null,null,0]
[null,null,0]
[null,null,0]
[null,null,0]
[null,null,0]
[null,null,0]
[null,null,0]
[null,null,0]
[null,null,0]
[null,null,0]
[null,null,0]
[null,null,0]
[null,null,{"$f":"D1001*$J$7","v":0}]
[null,null,0]
[null,null,0]
[null,null,0]
[null,null,0]
[null,null,0]
[null,null,0]
[null,null,0]
[null,null,0]
[null,null,0]
[null,null,0]
[null,null,0]
[null,null,0]
[null,null,0]
[null,null,0]
[null,null,0]
[null,null,0]
[null,null,0]
[null,null,0]
[null,null,0]
[null,null,0]
[null,null,0]
[null,null,0]
[null,null,0]
[null,null,0]
[null,null,0]
[null,null,0]
[null,null,0]
[null,null,0]
[null,null,0]
[null,null,0]
[null,null,0]
[null,null,0]
[null,null,0]
[null,null,0]
[null,null,0]
[null,null,0]
[null,null,0]
[null,null,0]
[null,null,0]
[null,null,0]
[null,null,0]
[null,null,0]
[null,null,0]
[null,null,0]
[null,null,0]
[null,null,0]
[null,null,0]
[null,null,0]
[null,null,0]
[null,null,0]
[null,null,0]
[null,null,0]
[null,null,0]
[null,null,0]
[null,null,0]
[null,null,0]
[null,null,0]
[null,null,0]
[null,null,0]
[null,null,0]
[null,null,0]
[null,null,0]
[null,null,0]
[null,null,{"$f":"D1065*$J$7","v":0}]
[null,null,0]
[null,null,0]
[null,null,0]
[null,null,0]
[null,null,0]
[null,null,0]
[null,null,0]
[null,null,0]
[null,null,0]
[null,null,0]
[null,null,0]
[null,null,0]
[null,null,0]
[null,null,0]
[null,null,0]
[null,null,0]
[null,null,0]
[null,null,0]
[null,null,0]
[null,null,0]
[null,null,0]
[null,null,0]
[null,null,0]
[null,null,0]
[null,null,0]
[null,null,0]
[null,null,0]
[null,null,0]
[null,null,0]
[null,null,0]
[null,null,0]
[null,null,0]
[null,null,0]
[null,null,0]
[null,null,0]
[null,null,0]
[null,null,0]
[null,null,0]
[null,null,0]
[null,null,0]
[null,null,0]
[null,null,0]
[null,null,0]
[null,null,0]
[null,null,0]
[null,null,0]
[null,null,0]
[null,null,0]
[null,null,0]
[null,null,0]
[null,null,0]
[null,null,0]
[null,null,0]
[null,null,0]
[null,null,0]
[null,null,0]
[null,null,0]
[null,null,0]
[null,null,0]
[null,null,0]
[null,null,0]
[null,null,0]
[null,null,0]
[null,null,{"$f":"D1129*$J$7","v":0}]
[null,null,0]
[null,null,0]
[null,null,0]
[null,null,0]
[null,null,0]
[null,null,0]
[null,null,0]
[null,null,0]
[null,null,0]
[null,null,0]
[null,null,0]
[null,null,0]
[null,null,0]
[null,null,0]
[null,null,0]
[null,null,0]
[null,null,0]
[null,null,0]
[null,null,0]
[null,null,0]
[null,null,0]
[null,null,0]
[null,null,0]
[null,null,0]
[null,null,0]
[null,null,0]
[null,null,0]
[null,null,0]
[null,null,0]
[null,null,0]
[null,null,0]
[null,null,0]
[null,null,0]
[null,null,0]
[null,null,0]
[null,null,0]
[null,null,0]
[null,null,0]
[null,null,0]
[null,null,0]
[null,null,0]
[null,null,0]
[null,null,0]
[null,null,0]
[null,null,0]
[null,null,0]
[null,null,0]
[null,null,0]
[null,null,0]
[null,null,0]
[null,null,0]
[null,null,0]
[null,null,0]
[null,null,0]
[null,null,0]
[null,null,0]
[null,null,0]
[null,null,0]
[null,null,0]
[null,null,0]
[null,null,0]
[null,null,0]
[null,null,0]
[null,null,{"$f":"D1193*$J$7","v":0}]
[null,null,0]
[null,null,0]
[null,null,0]
[null,null,0]
[null,null,0]
[null,null,0]
[null,null,0]
[null,null,0]
[null,null,0]
[null,null,0]
[null,null,0]
[null,null,0]
[null,null,0]
[null,null,0]
[null,null,0]
[null,null,0]
[null,null,0]
[null,null,0]
[null,null,0]
[null,null,0]
[null,null,0]
[null,null,0]
[null,null,0]
[null,null,0]
[null,null,0]
[null,null,0]
[null,null,0]
[null,null,0]
[null,null,0]
[null,null,0]
[null,null,0]
[null,null,0]
[null,null,0]
[null,null,0]
[null,null,0]
[null,null,0]
[null,null,0]
[null,null,0]
[null,null,0]
[null,null,0]
[null,null,0]
[null,null,0]
[null,null,0]
[null,null,0]
[null,null,0]
[null,null,0]
[null,null,0]
[null,null,0]
[null,null,0]
[null,null,0]
[null,null,0]
[null,null,0]
[null,null,0]
[null,null,0]
[null,null,0]
[null,null,0]
[null,null,0]
[null,null,0]
[null,null,0]
[null,null,0]
[null,null,0]
[null,null,0]
[null,null,0]
[null,null,{"$f":"D1257*$J$7","v":0}]
[null,null,0]
[null,null,0]
[null,null,0]
[null,null,0]
[null,null,0]
[null,null,0]
[null,null,0]
[null,null,0]
[null,null,0]
[null,null,0]
[null,null,0]
[null,null,0]
[null,null,0]
[null,null,0]
[null,null,0]
[null,null,0]
[null,null,0]
[null,null,0]
[null,null,0]
[null,null,0]
[null,null,0]
[null,null,0]
[null,null,0]
[null,null,0]
[null,null,0]
[null,null,0]
[null,null,0]
[null,null,0]
[null,null,0]
[null,null,0]
[null,null,0]
[null,null,0]
[null,null,0]
[null,null,0]
[null,null,0]
[null,null,0]
[null,null,0]
[null,null,0]
[null,null,0]
[null,null,0]
[null,null,0]
[null,null,0]
[null,null,0]
[null,null,0]
[null,null,0]
[null,null,0]
[null,null,0]
[null,null,0]
[null,null,0]
[null,null,0]
[null,null,0]
[null,null,0]
[null,null,0]
[null,null,0]
[null,null,0]
[null,null,0]
[null,null,0]
[null,null,0]
[null,null,0]
[null,null,0]
[null,null,0]
[null,null,0]
[null,null,0]
[null,null,{"$f":"D1321*$J$7","v":0}]
[null,null,0]
[null,null,0]
[null,null,0]
[null,null,0]
[null,null,0]
[null,null,0]
[null,null,0]
[null,null,0]
[null,null,0]
[null,null,0]
[null,null,0]
[null,null,0]
[null,null,0]
[null,null,0]
[null,null,0]
[null,null,0]
[null,null,0]
[null,null,0]
[null,null,0]
[null,null,0]
[null,null,0]
[null,null,0]
[null,null,0]
[null,null,0]
[null,null,0]
[null,null,0]
[null,null,0]
[null,null,0]
[null,null,0]
[null,null,0]
[null,null,0]
[null,null,0]
[null,null,0]
[null,null,0]
[null,null,0]
[null,null,0]
[null,null,0]
[null,null,0]
[null,null,0]
[null,null,0]
[null,null,0]
[null,null,0]
[null,null,0]
[null,null,0]
[null,null,0]
[null,null,0]
[null,null,0]
[null,null,0]
[null,null,0]
[null,null,0]
[null,null,0]
[null,null,0]
[null,null,0]
[null,null,0]
[null,null,0]
[null,null,0]
[null,null,0]
[null,null,0]
[null,null,0]
[null,null,0]
[null,null,0]
[null,null,0]
[null,null,0]
[null,null,{"$f":"D1385*$J$7","v":0}]
[null,null,0]
[null,null,0]
[null,null,0]
[null,null,0]
[null,null,0]
[null,null,0]
[null,null,0]
[null,null,0]
[null,null,0]
[null,null,0]
[null,null,0]
[null,null,0]
[null,null,0]
[null,null,0]
[null,null,0]
[null,null,0]
[null,null,0]
[null,null,0]
[null,null,0]
[null,null,0]
[null,null,0]
[null,null,0]
[null,null,0]
[null,null,0]
[null,null,0]
[null,null,0]
[null,null,0]
[null,null,0]
[null,null,0]
[null,null,0]
[null,null,0]
[null,null,0]
[null,null,0]
[null,null,0]
[null,null,0]
[null,null,0]
[null,null,0]
[null,null,0]
[null,null,0]
[null,null,0]
[null,null,0]
[null,null,0]
[null,null,0]
[null,null,0]
[null,null,0]
[null,null,0]
[null,null,0]
[null,null,0]
[null,null,0]
[null,null,0]
[null,null,0]
[null,null,0]
[null,null,0]
[null,null,0]
[null,null,0]
[null,null,0]
[null,null,0]
[null,null,0]
[null,null,0]
[null,null,0]
[null,null,0]
[null,null,0]
[null,null,0]
[null,null,{"$f":"D1449*$J$7","v":0}]
[null,null,0]
[null,null,0]
[null,null,0]
[null,null,0]
[null,null,0]
[null,null,0]
[null,null,0]
[null,null,0]
[null,null,0]
[null,null,0]
[null,null,0]
[null,null,0]
[null,null,0]
[null,null,0]
[null,null,0]
[null,null,0]
[null,null,0]
[null,null,0]
[null,null,0]
[null,null,0]
[null,null,0]
[null,null,0]
[null,null,0]
[null,null,0]
[null,null,0]
[null,null,0]
[null,null,0]
[null,null,0]
[null,null,0]
[null,null,0]
[null,null,0]
[null,null,0]
[null,null,0]
[null,null,0]
[null,null,0]
[null,null,0]
[null,null,0]
[null,null,0]
[null,null,0]
[null,null,0]
[null,null,0]
[null,null,0]
[null,null,0]
[null,null,0]
[null,null,0]
[null,null,0]
[null,null,0]
[null,null,0]
[null,null,0]
[null,null,0]
[null,null,0]
[null,null,0]
[null,null,0]
[null,null,0]
[null,null,0]
[null,null,0]
[null,null,0]
[null,null,0]
[null,null,0]
[null,null,0]
[null,null,0]
[null,null,0]
[null,null,0]
[null,null,{"$f":"D1513*$J$7","v":0}]
[null,null,0]
[null,null,0]
[null,null,0]
[null,null,0]
[null,null,0]
[null,null,0]
[null,null,0]
[null,null,0]
[null,null,0]
[null,null,0]
[null,null,0]
[null,null,0]
[null,null,0]
[null,null,0]
[null,null,0]
[null,null,0]
[null,null,0]
[null,null,0]
[null,null,0]
[null,null,0]
[null,null,0]
[null,null,0]
[null,null,0]
[null,null,0]
[null,null,0]
[null,null,0]
[null,null,0]
[null,null,0]
[null,null,0]
[null,null,0]
[null,null,0]
[null,null,0]
[null,null,0]
[null,null,0]
[null,null,0]
[null,null,0]
[null,null,0]
[null,null,0]
[null,null,0]
[null,null,0]
[null,null,0]
[null,null,0]
[null,null,0]
[null,null,0]
[null,null,0]
[null,null,0]
[null,null,0]
[null,null,0]
[null,null,0]
[null,null,0]
[null,null,0]
[null,null,0]
[null,null,0]
[null,null,0]
[null,null,0]
[null,null,0]
[null,null,0]
[null,null,0]
[null,null,0]
[null,null,0]
[null,null,0]
[null,null,0]
[null,null,0]
[null,null,{"$f":"D1577*$J$7","v":0}]
[null,null,0]
[null,null,0]
[null,null,0]
[null,null,0]
[null,null,0]
[null,null,0]
[null,null,0]
[null,null,0]
[null,null,0]
[null,null,0]
[null,null,0]
[null,null,0]
[null,null,0]
[null,null,0]
[null,null,0]
[null,null,0]
[null,null,0]
[null,null,0]
[null,null,0]
[null,null,0]
[null,null,0]
[null,null,0]
[null,null,0]
[null,null,0]
[null,null,0]
[null,null,0]
[null,null,0]
[null,null,0]
[null,null,0]
[null,null,0]
[null,null,0]
[null,null,0]
[null,null,0]
[null,null,0]
[null,null,0]
[null,null,0]
[null,null,0]
[null,null,0]
[null,null,0]
[null,null,0]
[null,null,0]
[null,null,0]
[null,null,0]
[null,null,0]
[null,null,0]
[null,null,0]
[null,null,0]
[null,null,0]
[null,null,0]
[null,null,0]
[null,null,0]
[null,null,0]
[null,null,0]
[null,null,0]
[null,null,0]
[null,null,0]
[null,null,0]
[null,null,0]
[null,null,0]
[null,null,0]
[null,null,0]
[null,null,0]
[null,null,0]
[null,null,{"$f":"D1641*$J$7","v":0}]
[null,null,0]
[null,null,0]
[null,null,0]
[null,null,0]
[null,null,0]
[null,null,0]
[null,null,0]
[null,null,0]
[null,null,0]
[null,null,0]
[null,null,0]
[null,null,0]
[null,null,0]
[null,null,0]
[null,null,0]
[null,null,0]
[null,null,0]
[null,null,0]
[null,null,0]
[null,null,0]
[null,null,0]
[null,null,0]
[null,null,0]
[null,null,0]
[null,null,0]
[null,null,0]
[null,null,0]
[null,null,0]
[null,null,0]
[null,null,0]
[null,null,0]
[null,null,0]
[null,null,0]
[null,null,0]
[null,null,0]
[null,null,0]
[null,null,0]
[null,null,0]
[null,null,0]
[null,null,0]
[null,null,0]
[null,null,0]
[null,null,0]
[null,null,0]
[null,null,0]
[null,null,0]
[null,null,0]
[null,null,0]
[null,null,0]
[null,null,0]
[null,null,0]
[null,null,0]
[null,null,0]
[null,null,0]
[null,null,0]
[null,null,0]
[null,null,0]
[null,null,0]
[null,null,0]
[null,null,0]
[null,null,0]
[null,null,0]
[null,null,0]
[null,null,{"$f":"D1705*$J$7","v":0}]
[null,null,0]
[null,null,0]
[null,null,0]
[null,null,0]
[null,null,0]
[null,null,0]
[null,null,0]
[null,null,0]
[null,null,0]
[null,null,0]
[null,null,0]
[null,null,0]
[null,null,0]
[null,null,0]
[null,null,0]
[null,null,0]
[null,null,0]
[null,null,0]
[null,null,0]
[null,null,0]
[null,null,0]
[null,null,0]
[null,null,0]
[null,null,0]
[null,null,0]
[null,null,0]
[null,null,0]
[null,null,0]
[null,null,0]
[null,null,0]
[null,null,0]
[null,null,0]
[null,null,0]
[null,null,0]
[null,null,0]
[null,null,0]
[null,null,0]
[null,null,0]
[null,null,0]
[null,null,0]
[null,null,0]
[null,null,0]
[null,null,0]
[null,null,0]
[null,null,0]
[null,null,0]
[null,null,0]
[null,null,0]
[null,null,0]
[null,null,0]
[null,null,0]
[null,null,0]
[null,null,0]
[null,null,0]
[null,null,0]
[null,null,0]
[null,null,0]
[null,null,0]
[null,null,0]
[null,null,0]
[null,null,0]
[null,null,0]
[null,null,0]
[null,null,{"$f":"D1769*$J$7","v":0}]
[null,null,0]
[null,null,0]
[null,null,0]
[null,null,0]
[null,null,0]
[null,null,0]
[null,null,0]
[null,null,0]
[null,null,0]
[null,null,0]
[null,null,0]
[null,null,0]
[null,null,0]
[null,null,0]
[null,null,0]
[null,null,0]
[null,null,0]
[null,null,0]
[null,null,0]
[null,null,0]
[null,null,0]
[null,null,0]
[null,null,0]
[null,null,0]
[null,null,0]
[null,null,0]
[null,null,0]
[null,null,0]
[null,null,0]
[null,null,0]
[null,null,0]
[null,null,0]
[null,null,0]
[null,null,0]
[null,null,0]
[null,null,0]
[null,null,0]
[null,null,0]
[null,null,0]
[null,null,0]
[null,null,0]
[null,null,0]
[null,null,0]
[null,null,0]
[null,null,0]
[null,null,0]
[null,null,0]
[null,null,0]
[null,null,0]
[null,null,0]
[null,null,0]
[null,null,0]
[null,null,0]
[null,null,0]
[null,null,0]
[null,null,0]
[null,null,0]
[null,null,0]
[null,null,0]
[null,null,0]
[null,null,0]
[null,null,0]
[null,null,0]
[null,null,{"$f":"D1833*$J$7","v":0}]
[null,null,0]
[null,null,0]
[null,null,0]
[null,null,0]
[null,null,0]
[null,null,0]
[null,null,0]
[null,null,0]
[null,null,0]
[null,null,0]
[null,null,0]
[null,null,0]
[null,null,0]
[null,null,0]
[null,null,0]
[null,null,0]
[null,null,0]
[null,null,0]
[null,null,0]
[null,null,0]
[null,null,0]
[null,null,0]
[null,null,0]
[null,null,0]
[null,null,0]
[null,null,0]
[null,null,0]
[null,null,0]
[null,null,0]
[null,null,0]
[null,null,0]
[null,null,0]
[null,null,0]
[null,null,0]
[null,null,0]
[null,null,0]
[null,null,0]
[null,null,0]
[null,null,0]
[null,null,0]
[null,null,0]
[null,null,0]
[null,null,0]
[null,null,0]
[null,null,0]
[null,null,0]
[null,null,0]
[null,null,0]
[null,null,0]
[null,null,0]
[null,null,0]
[null,null,0]
[null,null,0]
[null,null,0]
[null,null,0]
[null,null,0]
[null,null,0]
[null,null,0]
[null,null,0]
[null,null,0]
[null,null,0]
[null,null,0]
[null,null,0]
[null,null,{"$f":"D1897*$J$7","v":0}]
[null,null,0]
[null,null,0]
[null,null,0]
[null,null,0]
[null,null,0]
[null,null,0]
[null,null,0]
[null,null,0]
[null,null,0]
[null,null,0]
[null,null,0]
[null,null,0]
[null,null,0]
[null,null,0]
[null,null,0]
[null,null,0]
[null,null,0]
[null,null,0]
[null,null,0]
[null,null,0]
[null,null,0]
[null,null,0]
[null,null,0]
[null,null,0]
[null,null,0]
[null,null,0]
[null,null,0]
[null,null,0]
[null,null,0]
[null,null,0]
[null,null,0]
[null,null,0]
[null,null,0]
[null,null,0]
[null,null,0]
[null,null,0]
[null,null,0]
[null,null,0]
[null,null,0]
[null,null,0]
[null,null,0]
[null,null,0]
[null,null,0]
[null,null,0]
[null,null,0]
[null,null,0]
[null,null,0]
[null,null,0]
[null,null,0]
[null,null,0]
[null,null,0]
[null,null,0]
[null,null,0]
[null,null,0]
[null,null,0]
[null,null,0]
[null,null,0]
[null,null,0]
[null,null,0]
[null,null,0]
[null,null,0]
[null,null,0]
[null,null,0]
[null,null,{"$f":"D1961*$J$7","v":0}]
[null,null,0]
[null,null,0]
[null,null,0]
[null,null,0]
[null,null,0]
[null,null,0]
[null,null,0]
[null,null,0]
[null,null,0]
[null,null,0]
[null,null,0]
[null,null,0]
[null,null,0]
[null,null,0]
[null,null,0]
[null,null,0]
[null,null,0]
[null,null,0]
[null,null,0]
[null,null,0]
[null,null,0]
[null,null,0]
[null,null,0]
[null,null,0]
[null,null,0]
[null,null,0]
[null,null,0]
[null,null,0]
[null,null,0]
[null,null,0]
[null,null,0]
[null,null,0]
[null,null,0]
[null,null,0]
[null,null,0]
[null,null,0]
[null,null,0]
[null,null,0]
[null,null,0]
[null,null,0]
[null,null,0]
[null,null,0]
[null,null,0]
[null,null,0]
[null,null,0]
[null,null,0]
[null,null,0]
[null,null,0]
[null,null,0]
[null,null,0]
[null,null,0]
[null,null,0]
[null,null,0]
[null,null,0]
[null,null,0]
[null,null,0]
[null,null,0]
[null,null,0]
[null,null,0]
[null,null,0]
[null,null,0]
[null,null,0]
[null,null,0]
[null,null,{"$f":"D2025*$J$7","v":0}]
[null,null,0]
[null,null,0]
[null,null,0]
[null,null,0]
[null,null,0]
[null,null,0]
[null,null,0]
[null,null,0]
[null,null,0]
[null,null,0]
[null,null,0]
[null,null,0]
[null,null,0]
[null,null,0]
[null,null,0]
[null,null,0]
[null,null,0]
[null,null,0]
[null,null,0]
[null,null,0]
[null,null,0]
[null,null,0]
[null,null,0]
[null,null,0]
[null,null,0]
[null,null,0]
[null,null,0]
[null,null,0]
[null,null,0]
[null,null,0]
[null,null,0]
[null,null,0]
[null,null,0]
[null,null,0]
[null,null,0]
[null,null,0]
[null,null,0]
[null,null,0]
[null,null,0]
[null,null,0]
[null,null,0]
[null,null,0]
[null,null,0]
[null,null,0]
[null,null,0]
[null,null,0]
[null,null,0]
[null,null,0]
[null,null,0]
[null,null,0]
[null,null,0]
[null,null,0]
[null,null,0]
[null,null,0]
[null,null,0]
[null,null,0]
[null,null,0]
[null,null,0]
[null,null,0]
[null,null,0]
[null,null,0]
[null,null,0]
[null,null,0]
[null,null,{"$f":"D2089*$J$7","v":0}]
[null,null,0]
[null,null,0]
[null,null,0]
[null,null,0]
[null,null,0]
[null,null,0]
[null,null,0]
[null,null,0]
[null,null,0]
[null,null,0]
[null,null,0]
[null,null,0]
[null,null,0]
[null,null,0]
[null,null,0]
[null,null,0]
[null,null,0]
[null,null,0]
[null,null,0]
[null,null,0]
[null,null,0]
[null,null,0]
[null,null,0]
[null,null,0]
[null,null,0]
[null,null,0]
[null,null,0]
[null,null,0]
[null,null,0]
[null,null,0]
[null,null,0]
[null,null,0]
[null,null,0]
[null,null,0]
[null,null,0]
[null,null,0]
[null,null,0]
[null,null,0]
[null,null,0]
[null,null,0]
[null,null,0]
[null,null,0]
[null,null,0]
[null,null,0]
[null,null,0]
[null,null,0]
[null,null,0]
[null,null,0]
[null,null,0]
[null,null,0]
[null,null,0]
[null,null,0]
[null,null,0]
[null,null,0]
[null,null,0]
[null,null,0]
[null,null,0]
[null,null,0]
[null,null,0]
[null,null,0]
[null,null,0]
[null,null,0]
[null,null,0]
[null,null,{"$f":"D2153*$J$7","v":0}]
[null,null,0]
[null,null,0]
[null,null,0]
[null,null,0]
[null,null,0]
[null,null,0]
[null,null,0]
[null,null,0]
[null,null,0]
[null,null,0]
[null,null,0]
[null,null,0]
[null,null,0]
[null,null,0]
[null,null,0]
[null,null,0]
[null,null,0]
[null,null,0]
[null,null,0]
[null,null,0]
[null,null,0]
[null,null,0]
[null,null,0]
[null,null,0]
[null,null,0]
[null,null,0]
[null,null,0]
[null,null,0]
[null,null,0]
[null,null,0]
[null,null,0]
[null,null,0]
[null,null,0]
[null,null,0]
[null,null,0]
[null,null,0]
[null,null,0]
[null,null,0]
[null,null,0]
[null,null,0]
[null,null,0]
[null,null,0]
[null,null,0]
[null,null,0]
[null,null,0]
[null,null,0]
[null,null,0]
[null,null,0]
[null,null,0]
[null,null,0]
[null,null,0]
[null,null,0]
[null,null,0]
[null,null,0]
[null,null,0]
[null,null,0]
[null,null,0]
[null,null,0]
[null,null,0]
[null,null,0]
[null,null,0]
[null,null,0]
[null,null,0]
[null,null,{"$f":"D2217*$J$7","v":0}]
[null,null,0]
[null,null,0]
[null,null,0]
[null,null,0]
[null,null,0]
[null,null,0]
[null,null,0]
[null,null,0]
[null,null,0]
[null,null,0]
[null,null,0]
[null,null,0]
[null,null,0]
[null,null,0]
[null,null,0]
[null,null,0]
[null,null,0]
[null,null,0]
[null,null,0]
[null,null,0]
[null,null,0]
[null,null,0]
[null,null,0]
[null,null,0]
[null,null,0]
[null,null,0]
[null,null,0]
[null,null,0]
[null,null,0]
[null,null,0]
[null,null,0]
[null,null,0]
[null,null,0]
[null,null,0]
[null,null,0]
[null,null,0]
[null,null,0]
[null,null,0]
[null,null,0]
[null,null,0]
[null,null,0]
[null,null,0]
[null,null,0]
[null,null,0]
[null,null,0]
[null,null,0]
[null,null,0]
[null,null,0]
[null,null,0]
[null,null,0]
[null,null,0]
[null,null,0]
[null,null,0]
[null,null,0]
[null,null,0]
[null,null,0]
[null,null,0]
[null,null,0]
[null,null,0]
[null,null,0]
[null,null,0]
[null,null,0]
[null,null,0]
[null,null,{"$f":"D2281*$J$7","v":0}]
[null,null,0]
[null,null,0]
[null,null,0]
[null,null,0]
[null,null,0]
[null,null,0]
[null,null,0]
[null,null,0]
[null,null,0]
[null,null,0]
[null,null,0]
[null,null,0]
[null,null,0]
[null,null,0]
[null,null,0]
[null,null,0]
[null,null,0]
[null,null,0]
[null,null,0]
[null,null,0]
[null,null,0]
[null,null,0]
[null,null,0]
[null,null,0]
[null,null,0]
[null,null,0]
[null,null,0]
[null,null,0]
[null,null,0]
[null,null,0]
[null,null,0]
[null,null,0]
[null,null,0]
[null,null,0]
[null,null,0]
[null,null,0]
[null,null,0]
[null,null,0]
[null,null,0]
[null,null,0]
[null,null,0]
[null,null,0]
[null,null,0]
[null,null,0]
[null,null,0]
[null,null,0]
[null,null,0]
[null,null,0]
[null,null,0]
[null,null,0]
[null,null,0]
[null,null,0]
[null,null,0]
[null,null,0]
[null,null,0]
[null,null,0]
[null,null,0]
[null,null,0]
[null,null,0]
[null,null,0]
[null,null,0]
[null,null,0]
[null,null,0]
[null,null,{"$f":"D2345*$J$7","v":0}]
[null,null,0]
[null,null,0]
[null,null,0]
[null,null,0]
[null,null,0]
[null,null,0]
[null,null,0]
[null,null,0]
[null,null,0]
[null,null,0]
[null,null,0]
[null,null,0]
[null,null,0]
[null,null,0]
[null,null,0]
[null,null,0]
[null,null,0]
[null,null,0]
[null,null,0]
[null,null,0]
[null,null,0]
[null,null,0]
[null,null,0]
[null,null,0]
[null,null,0]
[null,null,0]
[null,null,0]
[null,null,0]
[null,null,0]
[null,null,0]
[null,null,0]
[null,null,0]
[null,null,0]
[null,null,0]
[null,null,0]
[null,null,0]
[null,null,0]
[null,null,0]
[null,null,0]
[null,null,0]
[null,null,0]
[null,null,0]
[null,null,0]
[null,null,0]
[null,null,0]
[null,null,0]
[null,null,0]
[null,null,0]
[null,null,0]
[null,null,0]
[null,null,0]
[null,null,0]
[null,null,0]
[null,null,0]
[null,null,0]
[null,null,0]
[null,null,0]
[null,null,0]
[null,null,0]
[null,null,0]
[null,null,0]
[null,null,0]
[null,null,0]
[null,null,{"$f":"D2409*$J$7","v":0}]
[null,null,0]
[null,null,0]
[null,null,0]
[null,null,0]
[null,null,0]
[null,null,0]
[null,null,0]
[null,null,0]
[null,null,0]
[null,null,0]
[null,null,0]
[null,null,0]
[null,null,0]
[null,null,0]
[null,null,0]
[null,null,0]
[null,null,0]
[null,null,0]
[null,null,0]
[null,null,0]
[null,null,0]
[null,null,0]
[null,null,0]
[null,null,0]
[null,null,0]
[null,null,0]
[null,null,0]
[null,null,0]
[null,null,0]
[null,null,0]
[null,null,0]
[null,null,0]
[null,null,0]
[null,null,0]
[null,null,0]
[null,null,0]
[null,null,0]
[null,null,0]
[null,null,0]
[null,null,0]
[null,null,0]
[null,null,0]
[null,null,0]
[null,null,0]
[null,null,0]
[null,null,0]
[null,null,0]
[null,null,0]
[null,null,0]
[null,null,0]
[null,null,0]
[null,null,0]
[null,null,0]
[null,null,0]
[null,null,0]
[null,null,0]
[null,null,0]
[null,null,0]
[null,null,0]
[null,null,0]
[null,null,0]
[null,null,0]
[null,null,0]
[null,null,{"$f":"D2473*$J$7","v":0}]
[null,null,0]
[null,null,0]
[null,null,0]
[null,null,0]
[null,null,0]
[null,null,0]
[null,null,0]
[null,null,0]
[null,null,0]
[null,null,0]
[null,null,0]
[null,null,0]
[null,null,0]
[null,null,0]
[null,null,0]
[null,null,0]
[null,null,0]
[null,null,0]
[null,null,0]
[null,null,0]
[null,null,0]
[null,null,0]
[null,null,0]
[null,null,0]
[null,null,0]
[null,null,0]
[null,null,0]

{"sheet":"O1","index":6,"n_rows":18,"n_cols":5,"rows_kept":18,"cut":false,"hidden":false,"merged":[[0,0,9,0],[4,1,4,3],[5,1,5,3],[6,1,6,3],[7,1,7,3],[8,1,8,3],[9,1,9,3],[14,0,14,3],[15,0,15,3],[16,0,16,3],[10,0,10,3],[12,0,12,3],[13,0,13,3]]}
[null,"Does the product/service fulfil the requirement?",null,null,"Please select status"]
[null,"Applicant:","Please select status",null,"Yes"]
[null,"Evaluator:","Please select status",null,"No"]
[null,"Reviewer:","Please select status",null,"Documentation missing"]
[null,"Comments from the applicant (on delivered documentation)  ",null,null,"N.A."]
[null,"Describe how the fund fulfils this requirement and refer to the document(s) that verifies this."]
[null,"Comments from the evaluator (for the summary of requirements)"]
[]
[null,"Comments from the evaluator (on delivered documentation)"]
[]
["Documentation:"]
["Names of the documents that verify compliance with the requirement (filled out by the applicant) (filled out by the applicant)"]
["Examplefile_date.pdf"]
[]
[]
[]
[]
[null,null,{"$f":"IFERROR(VLOOKUP(\"activesheetname\",#REF!,3),\"\")","v":""},{"$f":"IFERROR(VLOOKUP(\"activesheetname\",#REF!,4),\"\")","v":""},"No"]

{"sheet":"O2","index":7,"n_rows":18,"n_cols":5,"rows_kept":18,"cut":false,"hidden":false,"merged":[[0,0,9,0],[4,1,4,3],[5,1,5,3],[6,1,6,3],[7,1,7,3],[8,1,8,3],[9,1,9,3],[14,0,14,3],[15,0,15,3],[16,0,16,3],[10,0,10,3],[12,0,12,3],[13,0,13,3]]}
[null,"Does the product/service fulfil the requirement?",null,null,"Please select status"]
[null,"Applicant:","Please select status",null,"Yes"]
[null,"Evaluator:","Please select status",null,"No"]
[null,"Reviewer:","Please select status",null,"Documentation missing"]
[null,"Comments from the applicant (on delivered documentation)  ",null,null,"N.A."]
[null,"Describe how the fund fulfils this requirement and refer to the document(s) that verifies this."]
[null,"Comments from the evaluator (for the summary of requirements)"]
[]
[null,"Comments from the evaluator (on delivered documentation)"]
[]
["Documentation:"]
["Names of the documents that verify compliance with the requirement (filled out by the applicant)"]
["Examplefile_date.pdf"]
[]
[]
[]
[]
[null,null,{"$f":"IFERROR(VLOOKUP(\"activesheetname\",#REF!,3),\"\")","v":""},{"$f":"IFERROR(VLOOKUP(\"activesheetname\",#REF!,4),\"\")","v":""},"No"]

{"sheet":"O3","index":8,"n_rows":18,"n_cols":5,"rows_kept":18,"cut":false,"hidden":false,"merged":[[0,0,9,0],[4,1,4,3],[5,1,5,3],[6,1,6,3],[7,1,7,3],[8,1,8,3],[9,1,9,3],[14,0,14,3],[15,0,15,3],[16,0,16,3],[10,0,10,3],[12,0,12,3],[13,0,13,3]]}
[null,"Does the product/service fulfil the requirement?",null,null,"Please select status"]
[null,"Applicant:","Please select status",null,"Yes"]
[null,"Evaluator:","Please select status",null,"No"]
[null,"Reviewer:","Please select status",null,"Documentation missing"]
[null,"Comments from the applicant (on delivered documentation)  ",null,null,"N.A."]
[null,"Describe how the fund fulfils this requirement and refer to the document(s) that verifies this."]
[null,"Comments from the evaluator (for the summary of requirements)"]
[]
[null,"Comments from the evaluator (on delivered documentation)"]
[]
["Documentation:"]
["Names of the documents that verify compliance with the requirement (filled out by the applicant)"]
["Examplefile_date.pdf"]
[]
[]
[]
[]
[null,null,{"$f":"IFERROR(VLOOKUP(\"activesheetname\",#REF!,3),\"\")","v":""},{"$f":"IFERROR(VLOOKUP(\"activesheetname\",#REF!,4),\"\")","v":""},"No"]

{"sheet":"O4","index":9,"n_rows":18,"n_cols":5,"rows_kept":18,"cut":false,"hidden":false,"merged":[[0,0,9,0],[4,1,4,3],[5,1,5,3],[6,1,6,3],[7,1,7,3],[8,1,8,3],[9,1,9,3],[14,0,14,3],[15,0,15,3],[16,0,16,3],[10,0,10,3],[12,0,12,3],[13,0,13,3]]}
[null,"Does the product/service fulfil the requirements?",null,null,"Please select status"]
[null,"Applicant:","Please select status",null,"Yes"]
[null,"Evaluator:","Please select status",null,"No"]
[null,"Reviewer:","Please select status",null,"Documentation missing"]
[null,"Comments from the applicant (on delivered documentation)  ",null,null,"N.A."]
[null,"Describe how the fund fulfils the requirement and refer to the document(s) that verifies this."]
[null,"Comments from the evaluator (for the summary of requirements)"]
[]
[null,"Comments from the evaluator (on delivered documentation)"]
[]
["Documentation:"]
["Names of the documents that verify compliance with the requirement (filled out by the applicant)"]
["Examplefile_date.pdf"]
[]
[]
[]
[]
[null,null,{"$f":"IFERROR(VLOOKUP(\"activesheetname\",#REF!,3),\"\")","v":""},{"$f":"IFERROR(VLOOKUP(\"activesheetname\",#REF!,4),\"\")","v":""},"No"]

{"sheet":"O5-6","index":10,"n_rows":18,"n_cols":5,"rows_kept":18,"cut":false,"hidden":false,"merged":[[16,0,16,3],[0,0,9,0],[4,1,4,3],[5,1,5,3],[6,1,6,3],[7,1,7,3],[8,1,8,3],[9,1,9,3],[10,0,10,3],[12,0,12,3],[13,0,13,3],[14,0,14,3],[15,0,15,3]]}
[null,"Does the product/service fulfil the requirements?",null,null,"Please select status"]
[null,"Applicant:","Please select status",null,"Yes"]
[null,"Evaluator:","Please select status",null,"No"]
[null,"Reviewer:","Please select status",null,"Documentation missing"]
[null,"Comments from the applicant (on delivered documentation)  ",null,null,"N.A."]
[null,"Describe how the fund fulfils requirements O5-O6 and refer to the document(s) that verifies this."]
[null,"Comments from the evaluator (for the summary of requirements)"]
[]
[null,"Comments from the evaluator (on delivered documentation)"]
[]
["Documentation:"]
["Names of the documents that verify compliance with the requirement (filled out by the applicant)"]
["Examplefile_date.pdf"]
[]
[]
[]
[]
[null,null,{"$f":"IFERROR(VLOOKUP(\"activesheetname\",#REF!,3),\"\")","v":""},{"$f":"IFERROR(VLOOKUP(\"activesheetname\",#REF!,4),\"\")","v":""},"No"]

{"sheet":"O7-9","index":11,"n_rows":18,"n_cols":5,"rows_kept":18,"cut":false,"hidden":false,"merged":[[0,0,9,0],[4,1,4,3],[5,1,5,3],[6,1,6,3],[7,1,7,3],[8,1,8,3],[9,1,9,3],[14,0,14,3],[15,0,15,3],[16,0,16,3],[10,0,10,3],[12,0,12,3],[13,0,13,3]]}
[null,"Does the product/service fulfil the requirements?",null,null,"Please select status"]
[null,"Applicant:","Please select status",null,"Yes"]
[null,"Evaluator:","Please select status",null,"No"]
[null,"Reviewer:","Please select status",null,"Documentation missing"]
[null,"Comments from the applicant (on delivered documentation)  ",null,null,"N.A."]
[null,"Describe how the fund fulfils requirements O7-O9 and refer to the document(s) that verifies this."]
[null,"Comments from the evaluator (for the summary of requirements)"]
[]
[null,"Comments from the evaluator (on delivered documentation)"]
[]
["Documentation:"]
["Names of the documents that verify compliance with the requirement (filled out by the applicant)"]
["Examplefile_date.pdf"]
[]
[]
[]
[]
[null,null,{"$f":"IFERROR(VLOOKUP(\"activesheetname\",#REF!,3),\"\")","v":""},{"$f":"IFERROR(VLOOKUP(\"activesheetname\",#REF!,4),\"\")","v":""},"No"]

{"sheet":"P1","index":12,"n_rows":18,"n_cols":5,"rows_kept":18,"cut":false,"hidden":false,"merged":[[12,0,12,3],[13,0,13,3],[14,0,14,3],[15,0,15,3],[16,0,16,3],[0,0,9,0],[4,1,4,3],[5,1,5,3],[6,1,6,3],[7,1,7,3],[8,1,8,3],[9,1,9,3]]}
[null,"Does the product/service fulfil the requirement?",null,null,"Please select status"]
[null,"Applicant:","Please select status",null,"Yes, 1 point"]
[null,"Evaluator:","Please select status",null,"No"]
[null,"Reviewer:","Please select status",null,"Documentation missing"]
[null,"Comments from the applicant (on delivered documentation)  ",null,null,"N.A."]
[null,"Describe how the fund fulfils this requirement and refer to the document(s) that verifies this."]
[null,"Comments from the evaluator (for the summary of requirements)"]
[]
[null,"Comments from the evaluator (on delivered documentation)"]
[]
["Documentation:"]
["Names of the documents that verify compliance with the requirement (filled out by the applicant)"]
["Examplefile_date.pdf"]
[]
[]
[]
[]
[null,null,{"$f":"IFERROR(VLOOKUP(\"activesheetname\",#REF!,3),\"\")","v":""},{"$f":"IFERROR(VLOOKUP(\"activesheetname\",#REF!,4),\"\")","v":""},"No"]

{"sheet":"O10","index":13,"n_rows":18,"n_cols":5,"rows_kept":18,"cut":false,"hidden":false,"merged":[[0,0,9,0],[4,1,4,3],[5,1,5,3],[6,1,6,3],[7,1,7,3],[8,1,8,3],[9,1,9,3],[12,0,12,3],[13,0,13,3],[14,0,14,3],[15,0,15,3],[16,0,16,3]]}
[null,"Does the product/service fulfil the requirement?",null,null,"Please select status"]
[null,"Applicant:","Please select status",null,"Yes"]
[null,"Evaluator:","Please select status",null,"No"]
[null,"Reviewer:","Please select status",null,"Documentation missing"]
[null,"Comments from the applicant (on delivered documentation)  ",null,null,"N.A."]
[null,"Describe how the fund fulfils this requirement and refer to the document(s) that verifies this. See also requirement O4 New information on holdings."]
[null,"Comments from the evaluator (for the summary of requirements)"]
[]
[null,"Comments from the evaluator (on delivered documentation)"]
[]
["Documentation:"]
["Names of the documents that verify compliance with the requirement (filled out by the applicant)"]
["Examplefile_date.pdf"]
[]
[]
[]
[]
[null,null,{"$f":"IFERROR(VLOOKUP(\"activesheetname\",#REF!,3),\"\")","v":""},{"$f":"IFERROR(VLOOKUP(\"activesheetname\",#REF!,4),\"\")","v":""},"No"]

{"sheet":"O11-12","index":14,"n_rows":18,"n_cols":5,"rows_kept":18,"cut":false,"hidden":false,"merged":[[0,0,9,0],[4,1,4,3],[5,1,5,3],[6,1,6,3],[7,1,7,3],[8,1,8,3],[9,1,9,3],[12,0,12,3],[13,0,13,3],[14,0,14,3],[15,0,15,3],[16,0,16,3]]}
[null,"Does the product/service fulfil the requirements?",null,null,"Please select status"]
[null,"Applicant:","Please select status",null,"Yes"]
[null,"Evaluator:","Please select status",null,"No"]
[null,"Reviewer:","Please select status",null,"Documentation missing"]
[null,"Comments from the applicant (on delivered documentation)  ",null,null,"N.A."]
[null,"Describe how the fund fulfils requirements O11-O12 and refer to the document(s) that verifies this."]
[null,"Comments from the evaluator (for the summary of requirements)"]
[]
[null,"Comments from the evaluator (on delivered documentation)"]
[]
["Documentation:"]
["Names of the documents that verify compliance with the requirement (filled out by the applicant)"]
["Examplefile_date.pdf"]
[]
[]
[]
[]
[null,null,{"$f":"IFERROR(VLOOKUP(\"activesheetname\",#REF!,3),\"\")","v":""},{"$f":"IFERROR(VLOOKUP(\"activesheetname\",#REF!,4),\"\")","v":""},"No"]

{"sheet":"O13","index":15,"n_rows":18,"n_cols":5,"rows_kept":18,"cut":false,"hidden":false,"merged":[[0,0,9,0],[4,1,4,3],[5,1,5,3],[6,1,6,3],[7,1,7,3],[8,1,8,3],[9,1,9,3],[12,0,12,3],[13,0,13,3],[14,0,14,3],[15,0,15,3],[16,0,16,3]]}
[null,"Does the product/service fulfil the requirement?",null,null,"Please select status"]
[null,"Applicant:","Please select status",null,"Yes"]
[null,"Evaluator:","Please select status",null,"No"]
[null,"Reviewer:","Please select status",null,"Documentation missing"]
[null,"Comments from the applicant (on delivered documentation)  ",null,null,"N.A."]
[null,"Describe how the fund fulfils this requirement and refer to the document(s) that verifies this."]
[null,"Comments from the evaluator (for the summary of requirements)"]
[]
[null,"Comments from the evaluator (on delivered documentation)"]
[]
["Documentation:"]
["Names of the documents that verify compliance with the requirement (filled out by the applicant)"]
["Examplefile_date.pdf"]
[]
[]
[]
[]
[null,null,{"$f":"IFERROR(VLOOKUP(\"activesheetname\",#REF!,3),\"\")","v":""},{"$f":"IFERROR(VLOOKUP(\"activesheetname\",#REF!,4),\"\")","v":""},"No"]

{"sheet":"P2","index":16,"n_rows":18,"n_cols":5,"rows_kept":18,"cut":false,"hidden":false,"merged":[[0,0,9,0],[4,1,4,3],[5,1,5,3],[6,1,6,3],[7,1,7,3],[8,1,8,3],[9,1,9,3],[12,0,12,3],[13,0,13,3],[14,0,14,3],[15,0,15,3],[16,0,16,3]]}
[null,"Does the product/service fulfil the requirement?",null,null,"Please select status"]
[null,"Applicant:","Please select status",null,"Yes, 2 points"]
[null,"Evaluator:","Please select status",null,"No"]
[null,"Reviewer:","Please select status",null,"Documentation missing"]
[null,"Comments from the applicant (on delivered documentation)  ",null,null,"N.A."]
[null,"Describe how the fund fulfils this requirement and refer to the document(s) that verifies this."]
[null,"Comments from the evaluator (for the summary of requirements)"]
[]
[null,"Comments from the evaluator (on delivered documentation)"]
[]
["Documentation:"]
["Names of the documents that verify compliance with the requirement (filled out by the applicant)"]
["Examplefile_date.pdf"]
[]
[]
[]
[]
[null,null,{"$f":"IFERROR(VLOOKUP(\"activesheetname\",#REF!,3),\"\")","v":""},{"$f":"IFERROR(VLOOKUP(\"activesheetname\",#REF!,4),\"\")","v":""},"No"]

{"sheet":"O14","index":17,"n_rows":18,"n_cols":5,"rows_kept":18,"cut":false,"hidden":false,"merged":[[0,0,9,0],[4,1,4,3],[5,1,5,3],[6,1,6,3],[7,1,7,3],[8,1,8,3],[9,1,9,3],[12,0,12,3],[13,0,13,3],[14,0,14,3],[15,0,15,3],[16,0,16,3]]}
[null,"Does the product/service fulfil the requirement?",null,null,"Please select status"]
[null,"Applicant:","Please select status",null,"Yes"]
[null,"Evaluator:","Please select status",null,"No"]
[null,"Reviewer:","Please select status",null,"Documentation missing"]
[null,"Comments from the applicant (on delivered documentation)  ",null,null,"N.A."]
[null,"Describe how the fund fulfils this requirement and refer to the document(s) that verifies this."]
[null,"Comments from the evaluator (for the summary of requirements)"]
[]
[null,"Comments from the evaluator (on delivered documentation)"]
[]
["Documentation:"]
["Names of the documents that verify compliance with the requirement (filled out by the applicant)"]
["Examplefile_date.pdf"]
[]
[]
[]
[]
[null,null,{"$f":"IFERROR(VLOOKUP(\"activesheetname\",#REF!,3),\"\")","v":""},{"$f":"IFERROR(VLOOKUP(\"activesheetname\",#REF!,4),\"\")","v":""},"No"]

{"sheet":"P3","index":18,"n_rows":18,"n_cols":5,"rows_kept":18,"cut":false,"hidden":false,"merged":[[0,0,9,0],[4,1,4,3],[5,1,5,3],[6,1,6,3],[7,1,7,3],[8,1,8,3],[9,1,9,3],[12,0,12,3],[13,0,13,3],[14,0,14,3],[15,0,15,3],[16,0,16,3]]}
[null,"Does the product/service fulfil the requirement?",null,null,"Please select status"]
[null,"Applicant:","Please select status",null,"Yes, 1 point"]
[null,"Evaluator:","Please select status",null,"Yes, 2 points"]
[null,"Reviewer:","Please select status",null,"Yes, 3 points"]
[null,"Comments from the applicant (on delivered documentation)  ",null,null,"Yes, 4 points"]
[null,"Please fill out the worksheet \"P3 calculation\" with requested information and insert additional comments here.",null,null,"No"]
[null,"Comments from the evaluator (for the summary of requirements)",null,null,"Documentation missing"]
[null,null,null,null,"N.A."]
[null,"Comments from the evaluator (on delivered documentation)"]
[]
["Documentation:"]
["Names of the documents that verify compliance with the requirement (filled out by the applicant)"]
["Examplefile_date.pdf"]
[]
[]
[]
[]
[null,null,{"$f":"IFERROR(VLOOKUP(\"activesheetname\",#REF!,3),\"\")","v":""},{"$f":"IFERROR(VLOOKUP(\"activesheetname\",#REF!,4),\"\")","v":""},"No"]

{"sheet":"P3 calculation","index":19,"n_rows":1013,"n_cols":11,"rows_kept":1013,"cut":false,"hidden":false,"merged":[[4,2,4,3],[6,2,6,3]]}
[null,"Nordic Ecolabelling ","Calculation sheet for criterion P3 Environmental Focus"]
[]
[null,"General fund data"]
[]
[null,"Fund company",null,null,"ISIN code of fund",null,"Currency","SEK","Total score",{"$f":"SUM(I11:I1012)","v":0.12941176470588237}]
[]
[null,"Fund name",null,null,"AUM (thousands)",{"$f":"SUM(D11:D1012)","v":850000},"Date ",null,"Points ",{"$f":"IF($J$5>=0.5,4,IF($J$5>=0.35,3,IF($J$5>=0.22,2,IF($J$5>=0.1,1,0))))","v":1}]
[]
[null,"Holdings  data"]
[null,"Company / Bond name","ISIN code","Amount invested in holding (in thousands)","Total revenue  in the company / Total value of bond","Company revenue currency ","% of company's revenue that promotes a transition to a environmental sustainable future","% weight of holding in total AUM","Fund share of \"green holding\" in companies - total score transferred to J6","Brief description of how the identified holding percentage (column G) promotes a transition to an environmentally sustainable future. Nordic Ecolabelling can ask for more information. ","Brief description of source for information. Nordic Ecolabelling can ask for more information. "]
[null,"Example company A",null,50000,1000000,"NOK",0.2,{"$f":"D11/F$7","v":5.8823529411764705E-2},{"$f":"H11*G11","v":1.1764705882352941E-2}]
[null,"Example company B",null,50000,1000000,"SEK",0.1,5.8823529411764705E-2,{"$f":"H12*G12","v":5.8823529411764705E-3}]
[null,"Example company C",null,100000,1000000,"SEK",0.5,0.11764705882352941,{"$f":"H13*G13","v":5.8823529411764705E-2}]
[null,"Example company D",null,300000,3000000,"DKK",0.15,0.35294117647058826,5.2941176470588235E-2]
[null,"Example company E",null,350000,0,"NA",0,0.41176470588235292,0]
[null,null,null,null,null,null,null,0,0]
[null,null,null,null,null,null,null,0,0]
[null,null,null,null,null,null,null,0,0]
[null,null,null,null,null,null,null,0,0]
[null,null,null,null,null,null,null,0,0]
[null,null,null,null,null,null,null,0,0]
[null,null,null,null,null,null,null,0,0]
[null,null,null,null,null,null,null,0,0]
[null,null,null,null,null,null,null,0,0]
[null,null,null,null,null,null,null,0,0]
[null,null,null,null,null,null,null,0,0]
[null,null,null,null,null,null,null,0,0]
[null,null,null,null,null,null,null,0,0]
[null,null,null,null,null,null,null,0,0]
[null,null,null,null,null,null,null,0,0]
[null,null,null,null,null,null,null,0,0]
[null,null,null,null,null,null,null,0,0]
[null,null,null,null,null,null,null,0,0]
[null,null,null,null,null,null,null,0,0]
[null,null,null,null,null,null,null,0,0]
[null,null,null,null,null,null,null,0,0]
[null,null,null,null,null,null,null,0,0]
[null,null,null,null,null,null,null,0,0]
[null,null,null,null,null,null,null,0,0]
[null,null,null,null,null,null,null,0,0]
[null,null,null,null,null,null,null,0,0]
[null,null,null,null,null,null,null,0,0]
[null,null,null,null,null,null,null,0,0]
[null,null,null,null,null,null,null,0,0]
[null,null,null,null,null,null,null,0,0]
[null,null,null,null,null,null,null,0,0]
[null,null,null,null,null,null,null,0,0]
[null,null,null,null,null,null,null,0,0]
[null,null,null,null,null,null,null,0,0]
[null,null,null,null,null,null,null,0,0]
[null,null,null,null,null,null,null,0,0]
[null,null,null,null,null,null,null,0,0]
[null,null,null,null,null,null,null,0,0]
[null,null,null,null,null,null,null,0,0]
[null,null,null,null,null,null,null,0,0]
[null,null,null,null,null,null,null,0,0]
[null,null,null,null,null,null,null,0,0]
[null,null,null,null,null,null,null,0,0]
[null,null,null,null,null,null,null,0,0]
[null,null,null,null,null,null,null,0,0]
[null,null,null,null,null,null,null,0,0]
[null,null,null,null,null,null,null,0,0]
[null,null,null,null,null,null,null,0,0]
[null,null,null,null,null,null,null,0,0]
[null,null,null,null,null,null,null,0,0]
[null,null,null,null,null,null,null,0,0]
[null,null,null,null,null,null,null,0,0]
[null,null,null,null,null,null,null,0,0]
[null,null,null,null,null,null,null,0,0]
[null,null,null,null,null,null,null,0,0]
[null,null,null,null,null,null,null,0,0]
[null,null,null,null,null,null,null,0,0]
[null,null,null,null,null,null,null,0,0]
[null,null,null,null,null,null,null,0,0]
[null,null,null,null,null,null,null,{"$f":"D75/F$7","v":0},0]
[null,null,null,null,null,null,null,0,0]
[null,null,null,null,null,null,null,0,{"$f":"H77*G77","v":0}]
[null,null,null,null,null,null,null,0,0]
[null,null,null,null,null,null,null,0,0]
[null,null,null,null,null,null,null,0,0]
[null,null,null,null,null,null,null,0,0]
[null,null,null,null,null,null,null,0,0]
[null,null,null,null,null,null,null,0,0]
[null,null,null,null,null,null,null,0,0]
[null,null,null,null,null,null,null,0,0]
[null,null,null,null,null,null,null,0,0]
[null,null,null,null,null,null,null,0,0]
[null,null,null,null,null,null,null,0,0]
[null,null,null,null,null,null,null,0,0]
[null,null,null,null,null,null,null,0,0]
[null,null,null,null,null,null,null,0,0]
[null,null,null,null,null,null,null,0,0]
[null,null,null,null,null,null,null,0,0]
[null,null,null,null,null,null,null,0,0]
[null,null,null,null,null,null,null,0,0]
[null,null,null,null,null,null,null,0,0]
[null,null,null,null,null,null,null,0,0]
[null,null,null,null,null,null,null,0,0]
[null,null,null,null,null,null,null,0,0]
[null,null,null,null,null,null,null,0,0]
[null,null,null,null,null,null,null,0,0]
[null,null,null,null,null,null,null,0,0]
[null,null,null,null,null,null,null,0,0]
[null,null,null,null,null,null,null,0,0]
[null,null,null,null,null,null,null,0,0]
[null,null,null,null,null,null,null,0,0]
[null,null,null,null,null,null,null,0,0]
[null,null,null,null,null,null,null,0,0]
[null,null,null,null,null,null,null,0,0]
[null,null,null,null,null,null,null,0,0]
[null,null,null,null,null,null,null,0,0]
[null,null,null,null,null,null,null,0,0]
[null,null,null,null,null,null,null,0,0]
[null,null,null,null,null,null,null,0,0]
[null,null,null,null,null,null,null,0,0]
[null,null,null,null,null,null,null,0,0]
[null,null,null,null,null,null,null,0,0]
[null,null,null,null,null,null,null,0,0]
[null,null,null,null,null,null,null,0,0]
[null,null,null,null,null,null,null,0,0]
[null,null,null,null,null,null,null,0,0]
[null,null,null,null,null,null,null,0,0]
[null,null,null,null,null,null,null,0,0]
[null,null,null,null,null,null,null,0,0]
[null,null,null,null,null,null,null,0,0]
[null,null,null,null,null,null,null,0,0]
[null,null,null,null,null,null,null,0,0]
[null,null,null,null,null,null,null,0,0]
[null,null,null,null,null,null,null,0,0]
[null,null,null,null,null,null,null,0,0]
[null,null,null,null,null,null,null,0,0]
[null,null,null,null,null,null,null,0,0]
[null,null,null,null,null,null,null,0,0]
[null,null,null,null,null,null,null,0,0]
[null,null,null,null,null,null,null,0,0]
[null,null,null,null,null,null,null,0,0]
[null,null,null,null,null,null,null,0,0]
[null,null,null,null,null,null,null,0,0]
[null,null,null,null,null,null,null,{"$f":"D139/F$7","v":0},0]
[null,null,null,null,null,null,null,0,0]
[null,null,null,null,null,null,null,0,{"$f":"H141*G141","v":0}]
[null,null,null,null,null,null,null,0,0]
[null,null,null,null,null,null,null,0,0]
[null,null,null,null,null,null,null,0,0]
[null,null,null,null,null,null,null,0,0]
[null,null,null,null,null,null,null,0,0]
[null,null,null,null,null,null,null,0,0]
[null,null,null,null,null,null,null,0,0]
[null,null,null,null,null,null,null,0,0]
[null,null,null,null,null,null,null,0,0]
[null,null,null,null,null,null,null,0,0]
[null,null,null,null,null,null,null,0,0]
[null,null,null,null,null,null,null,0,0]
[null,null,null,null,null,null,null,0,0]
[null,null,null,null,null,null,null,0,0]
[null,null,null,null,null,null,null,0,0]
[null,null,null,null,null,null,null,0,0]
[null,null,null,null,null,null,null,0,0]
[null,null,null,null,null,null,null,0,0]
[null,null,null,null,null,null,null,0,0]
[null,null,null,null,null,null,null,0,0]
[null,null,null,null,null,null,null,0,0]
[null,null,null,null,null,null,null,0,0]
[null,null,null,null,null,null,null,0,0]
[null,null,null,null,null,null,null,0,0]
[null,null,null,null,null,null,null,0,0]
[null,null,null,null,null,null,null,0,0]
[null,null,null,null,null,null,null,0,0]
[null,null,null,null,null,null,null,0,0]
[null,null,null,null,null,null,null,0,0]
[null,null,null,null,null,null,null,0,0]
[null,null,null,null,null,null,null,0,0]
[null,null,null,null,null,null,null,0,0]
[null,null,null,null,null,null,null,0,0]
[null,null,null,null,null,null,null,0,0]
[null,null,null,null,null,null,null,0,0]
[null,null,null,null,null,null,null,0,0]
[null,null,null,null,null,null,null,0,0]
[null,null,null,null,null,null,null,0,0]
[null,null,null,null,null,null,null,0,0]
[null,null,null,null,null,null,null,0,0]
[null,null,null,null,null,null,null,0,0]
[null,null,null,null,null,null,null,0,0]
[null,null,null,null,null,null,null,0,0]
[null,null,null,null,null,null,null,0,0]
[null,null,null,null,null,null,null,0,0]
[null,null,null,null,null,null,null,0,0]
[null,null,null,null,null,null,null,0,0]
[null,null,null,null,null,null,null,0,0]
[null,null,null,null,null,null,null,0,0]
[null,null,null,null,null,null,null,0,0]
[null,null,null,null,null,null,null,0,0]
[null,null,null,null,null,null,null,0,0]
[null,null,null,null,null,null,null,0,0]
[null,null,null,null,null,null,null,0,0]
[null,null,null,null,null,null,null,0,0]
[null,null,null,null,null,null,null,0,0]
[null,null,null,null,null,null,null,0,0]
[null,null,null,null,null,null,null,0,0]
[null,null,null,null,null,null,null,0,0]
[null,null,null,null,null,null,null,0,0]
[null,null,null,null,null,null,null,0,0]
[null,null,null,null,null,null,null,{"$f":"D203/F$7","v":0},0]
[null,null,null,null,null,null,null,0,0]
[null,null,null,null,null,null,null,0,{"$f":"H205*G205","v":0}]
[null,null,null,null,null,null,null,0,0]
[null,null,null,null,null,null,null,0,0]
[null,null,null,null,null,null,null,0,0]
[null,null,null,null,null,null,null,0,0]
[null,null,null,null,null,null,null,0,0]
[null,null,null,null,null,null,null,0,0]
[null,null,null,null,null,null,null,0,0]
[null,null,null,null,null,null,null,0,0]
[null,null,null,null,null,null,null,0,0]
[null,null,null,null,null,null,null,0,0]
[null,null,null,null,null,null,null,0,0]
[null,null,null,null,null,null,null,0,0]
[null,null,null,null,null,null,null,0,0]
[null,null,null,null,null,null,null,0,0]
[null,null,null,null,null,null,null,0,0]
[null,null,null,null,null,null,null,0,0]
[null,null,null,null,null,null,null,0,0]
[null,null,null,null,null,null,null,0,0]
[null,null,null,null,null,null,null,0,0]
[null,null,null,null,null,null,null,0,0]
[null,null,null,null,null,null,null,0,0]
[null,null,null,null,null,null,null,0,0]
[null,null,null,null,null,null,null,0,0]
[null,null,null,null,null,null,null,0,0]
[null,null,null,null,null,null,null,0,0]
[null,null,null,null,null,null,null,0,0]
[null,null,null,null,null,null,null,0,0]
[null,null,null,null,null,null,null,0,0]
[null,null,null,null,null,null,null,0,0]
[null,null,null,null,null,null,null,0,0]
[null,null,null,null,null,null,null,0,0]
[null,null,null,null,null,null,null,0,0]
[null,null,null,null,null,null,null,0,0]
[null,null,null,null,null,null,null,0,0]
[null,null,null,null,null,null,null,0,0]
[null,null,null,null,null,null,null,0,0]
[null,null,null,null,null,null,null,0,0]
[null,null,null,null,null,null,null,0,0]
[null,null,null,null,null,null,null,0,0]
[null,null,null,null,null,null,null,0,0]
[null,null,null,null,null,null,null,0,0]
[null,null,null,null,null,null,null,0,0]
[null,null,null,null,null,null,null,0,0]
[null,null,null,null,null,null,null,0,0]
[null,null,null,null,null,null,null,0,0]
[null,null,null,null,null,null,null,0,0]
[null,null,null,null,null,null,null,0,0]
[null,null,null,null,null,null,null,0,0]
[null,null,null,null,null,null,null,0,0]
[null,null,null,null,null,null,null,0,0]
[null,null,null,null,null,null,null,0,0]
[null,null,null,null,null,null,null,0,0]
[null,null,null,null,null,null,null,0,0]
[null,null,null,null,null,null,null,0,0]
[null,null,null,null,null,null,null,0,0]
[null,null,null,null,null,null,null,0,0]
[null,null,null,null,null,null,null,0,0]
[null,null,null,null,null,null,null,0,0]
[null,null,null,null,null,null,null,0,0]
[null,null,null,null,null,null,null,0,0]
[null,null,null,null,null,null,null,0,0]
[null,null,null,null,null,null,null,{"$f":"D267/F$7","v":0},0]
[null,null,null,null,null,null,null,0,0]
[null,null,null,null,null,null,null,0,{"$f":"H269*G269","v":0}]
[null,null,null,null,null,null,null,0,0]
[null,null,null,null,null,null,null,0,0]
[null,null,null,null,null,null,null,0,0]
[null,null,null,null,null,null,null,0,0]
[null,null,null,null,null,null,null,0,0]
[null,null,null,null,null,null,null,0,0]
[null,null,null,null,null,null,null,0,0]
[null,null,null,null,null,null,null,0,0]
[null,null,null,null,null,null,null,0,0]
[null,null,null,null,null,null,null,0,0]
[null,null,null,null,null,null,null,0,0]
[null,null,null,null,null,null,null,0,0]
[null,null,null,null,null,null,null,0,0]
[null,null,null,null,null,null,null,0,0]
[null,null,null,null,null,null,null,0,0]
[null,null,null,null,null,null,null,0,0]
[null,null,null,null,null,null,null,0,0]
[null,null,null,null,null,null,null,0,0]
[null,null,null,null,null,null,null,0,0]
[null,null,null,null,null,null,null,0,0]
[null,null,null,null,null,null,null,0,0]
[null,null,null,null,null,null,null,0,0]
[null,null,null,null,null,null,null,0,0]
[null,null,null,null,null,null,null,0,0]
[null,null,null,null,null,null,null,0,0]
[null,null,null,null,null,null,null,0,0]
[null,null,null,null,null,null,null,0,0]
[null,null,null,null,null,null,null,0,0]
[null,null,null,null,null,null,null,0,0]
[null,null,null,null,null,null,null,0,0]
[null,null,null,null,null,null,null,0,0]
[null,null,null,null,null,null,null,0,0]
[null,null,null,null,null,null,null,0,0]
[null,null,null,null,null,null,null,0,0]
[null,null,null,null,null,null,null,0,0]
[null,null,null,null,null,null,null,0,0]
[null,null,null,null,null,null,null,0,0]
[null,null,null,null,null,null,null,0,0]
[null,null,null,null,null,null,null,0,0]
[null,null,null,null,null,null,null,0,0]
[null,null,null,null,null,null,null,0,0]
[null,null,null,null,null,null,null,0,0]
[null,null,null,null,null,null,null,0,0]
[null,null,null,null,null,null,null,0,0]
[null,null,null,null,null,null,null,0,0]
[null,null,null,null,null,null,null,0,0]
[null,null,null,null,null,null,null,0,0]
[null,null,null,null,null,null,null,0,0]
[null,null,null,null,null,null,null,0,0]
[null,null,null,null,null,null,null,0,0]
[null,null,null,null,null,null,null,0,0]
[null,null,null,null,null,null,null,0,0]
[null,null,null,null,null,null,null,0,0]
[null,null,null,null,null,null,null,0,0]
[null,null,null,null,null,null,null,0,0]
[null,null,null,null,null,null,null,0,0]
[null,null,null,null,null,null,null,0,0]
[null,null,null,null,null,null,null,0,0]
[null,null,null,null,null,null,null,0,0]
[null,null,null,null,null,null,null,0,0]
[null,null,null,null,null,null,null,0,0]
[null,null,null,null,null,null,null,{"$f":"D331/F$7","v":0},0]
[null,null,null,null,null,null,null,0,0]
[null,null,null,null,null,null,null,0,{"$f":"H333*G333","v":0}]
[null,null,null,null,null,null,null,0,0]
[null,null,null,null,null,null,null,0,0]
[null,null,null,null,null,null,null,0,0]
[null,null,null,null,null,null,null,0,0]
[null,null,null,null,null,null,null,0,0]
[null,null,null,null,null,null,null,0,0]
[null,null,null,null,null,null,null,0,0]
[null,null,null,null,null,null,null,0,0]
[null,null,null,null,null,null,null,0,0]
[null,null,null,null,null,null,null,0,0]
[null,null,null,null,null,null,null,0,0]
[null,null,null,null,null,null,null,0,0]
[null,null,null,null,null,null,null,0,0]
[null,null,null,null,null,null,null,0,0]
[null,null,null,null,null,null,null,0,0]
[null,null,null,null,null,null,null,0,0]
[null,null,null,null,null,null,null,0,0]
[null,null,null,null,null,null,null,0,0]
[null,null,null,null,null,null,null,0,0]
[null,null,null,null,null,null,null,0,0]
[null,null,null,null,null,null,null,0,0]
[null,null,null,null,null,null,null,0,0]
[null,null,null,null,null,null,null,0,0]
[null,null,null,null,null,null,null,0,0]
[null,null,null,null,null,null,null,0,0]
[null,null,null,null,null,null,null,0,0]
[null,null,null,null,null,null,null,0,0]
[null,null,null,null,null,null,null,0,0]
[null,null,null,null,null,null,null,0,0]
[null,null,null,null,null,null,null,0,0]
[null,null,null,null,null,null,null,0,0]
[null,null,null,null,null,null,null,0,0]
[null,null,null,null,null,null,null,0,0]
[null,null,null,null,null,null,null,0,0]
[null,null,null,null,null,null,null,0,0]
[null,null,null,null,null,null,null,0,0]
[null,null,null,null,null,null,null,0,0]
[null,null,null,null,null,null,null,0,0]
[null,null,null,null,null,null,null,0,0]
[null,null,null,null,null,null,null,0,0]
[null,null,null,null,null,null,null,0,0]
[null,null,null,null,null,null,null,0,0]
[null,null,null,null,null,null,null,0,0]
[null,null,null,null,null,null,null,0,0]
[null,null,null,null,null,null,null,0,0]
[null,null,null,null,null,null,null,0,0]
[null,null,null,null,null,null,null,0,0]
[null,null,null,null,null,null,null,0,0]
[null,null,null,null,null,null,null,0,0]
[null,null,null,null,null,null,null,0,0]
[null,null,null,null,null,null,null,0,0]
[null,null,null,null,null,null,null,0,0]
[null,null,null,null,null,null,null,0,0]
[null,null,null,null,null,null,null,0,0]
[null,null,null,null,null,null,null,0,0]
[null,null,null,null,null,null,null,0,0]
[null,null,null,null,null,null,null,0,0]
[null,null,null,null,null,null,null,0,0]
[null,null,null,null,null,null,null,0,0]
[null,null,null,null,null,null,null,0,0]
[null,null,null,null,null,null,null,0,0]
[null,null,null,null,null,null,null,{"$f":"D395/F$7","v":0},0]
[null,null,null,null,null,null,null,0,0]
[null,null,null,null,null,null,null,0,{"$f":"H397*G397","v":0}]
[null,null,null,null,null,null,null,0,0]
[null,null,null,null,null,null,null,0,0]
[null,null,null,null,null,null,null,0,0]
[null,null,null,null,null,null,null,0,0]
[null,null,null,null,null,null,null,0,0]
[null,null,null,null,null,null,null,0,0]
[null,null,null,null,null,null,null,0,0]
[null,null,null,null,null,null,null,0,0]
[null,null,null,null,null,null,null,0,0]
[null,null,null,null,null,null,null,0,0]
[null,null,null,null,null,null,null,0,0]
[null,null,null,null,null,null,null,0,0]
[null,null,null,null,null,null,null,0,0]
[null,null,null,null,null,null,null,0,0]
[null,null,null,null,null,null,null,0,0]
[null,null,null,null,null,null,null,0,0]
[null,null,null,null,null,null,null,0,0]
[null,null,null,null,null,null,null,0,0]
[null,null,null,null,null,null,null,0,0]
[null,null,null,null,null,null,null,0,0]
[null,null,null,null,null,null,null,0,0]
[null,null,null,null,null,null,null,0,0]
[null,null,null,null,null,null,null,0,0]
[null,null,null,null,null,null,null,0,0]
[null,null,null,null,null,null,null,0,0]
[null,null,null,null,null,null,null,0,0]
[null,null,null,null,null,null,null,0,0]
[null,null,null,null,null,null,null,0,0]
[null,null,null,null,null,null,null,0,0]
[null,null,null,null,null,null,null,0,0]
[null,null,null,null,null,null,null,0,0]
[null,null,null,null,null,null,null,0,0]
[null,null,null,null,null,null,null,0,0]
[null,null,null,null,null,null,null,0,0]
[null,null,null,null,null,null,null,0,0]
[null,null,null,null,null,null,null,0,0]
[null,null,null,null,null,null,null,0,0]
[null,null,null,null,null,null,null,0,0]
[null,null,null,null,null,null,null,0,0]
[null,null,null,null,null,null,null,0,0]
[null,null,null,null,null,null,null,0,0]
[null,null,null,null,null,null,null,0,0]
[null,null,null,null,null,null,null,0,0]
[null,null,null,null,null,null,null,0,0]
[null,null,null,null,null,null,null,0,0]
[null,null,null,null,null,null,null,0,0]
[null,null,null,null,null,null,null,0,0]
[null,null,null,null,null,null,null,0,0]
[null,null,null,null,null,null,null,0,0]
[null,null,null,null,null,null,null,0,0]
[null,null,null,null,null,null,null,0,0]
[null,null,null,null,null,null,null,0,0]
[null,null,null,null,null,null,null,0,0]
[null,null,null,null,null,null,null,0,0]
[null,null,null,null,null,null,null,0,0]
[null,null,null,null,null,null,null,0,0]
[null,null,null,null,null,null,null,0,0]
[null,null,null,null,null,null,null,0,0]
[null,null,null,null,null,null,null,0,0]
[null,null,null,null,null,null,null,0,0]
[null,null,null,null,null,null,null,0,0]
[null,null,null,null,null,null,null,{"$f":"D459/F$7","v":0},0]
[null,null,null,null,null,null,null,0,0]
[null,null,null,null,null,null,null,0,{"$f":"H461*G461","v":0}]
[null,null,null,null,null,null,null,0,0]
[null,null,null,null,null,null,null,0,0]
[null,null,null,null,null,null,null,0,0]
[null,null,null,null,null,null,null,0,0]
[null,null,null,null,null,null,null,0,0]
[null,null,null,null,null,null,null,0,0]
[null,null,null,null,null,null,null,0,0]
[null,null,null,null,null,null,null,0,0]
[null,null,null,null,null,null,null,0,0]
[null,null,null,null,null,null,null,0,0]
[null,null,null,null,null,null,null,0,0]
[null,null,null,null,null,null,null,0,0]
[null,null,null,null,null,null,null,0,0]
[null,null,null,null,null,null,null,0,0]
[null,null,null,null,null,null,null,0,0]
[null,null,null,null,null,null,null,0,0]
[null,null,null,null,null,null,null,0,0]
[null,null,null,null,null,null,null,0,0]
[null,null,null,null,null,null,null,0,0]
[null,null,null,null,null,null,null,0,0]
[null,null,null,null,null,null,null,0,0]
[null,null,null,null,null,null,null,0,0]
[null,null,null,null,null,null,null,0,0]
[null,null,null,null,null,null,null,0,0]
[null,null,null,null,null,null,null,0,0]
[null,null,null,null,null,null,null,0,0]
[null,null,null,null,null,null,null,0,0]
[null,null,null,null,null,null,null,0,0]
[null,null,null,null,null,null,null,0,0]
[null,null,null,null,null,null,null,0,0]
[null,null,null,null,null,null,null,0,0]
[null,null,null,null,null,null,null,0,0]
[null,null,null,null,null,null,null,0,0]
[null,null,null,null,null,null,null,0,0]
[null,null,null,null,null,null,null,0,0]
[null,null,null,null,null,null,null,0,0]
[null,null,null,null,null,null,null,0,0]
[null,null,null,null,null,null,null,0,0]
[null,null,null,null,null,null,null,0,0]
[null,null,null,null,null,null,null,0,0]
[null,null,null,null,null,null,null,0,0]
[null,null,null,null,null,null,null,0,0]
[null,null,null,null,null,null,null,0,0]
[null,null,null,null,null,null,null,0,0]
[null,null,null,null,null,null,null,0,0]
[null,null,null,null,null,null,null,0,0]
[null,null,null,null,null,null,null,0,0]
[null,null,null,null,null,null,null,0,0]
[null,null,null,null,null,null,null,0,0]
[null,null,null,null,null,null,null,0,0]
[null,null,null,null,null,null,null,0,0]
[null,null,null,null,null,null,null,0,0]
[null,null,null,null,null,null,null,0,0]
[null,null,null,null,null,null,null,0,0]
[null,null,null,null,null,null,null,0,0]
[null,null,null,null,null,null,null,0,0]
[null,null,null,null,null,null,null,0,0]
[null,null,null,null,null,null,null,0,0]
[null,null,null,null,null,null,null,0,0]
[null,null,null,null,null,null,null,0,0]
[null,null,null,null,null,null,null,0,0]
[null,null,null,null,null,null,null,{"$f":"D523/F$7","v":0},0]
[null,null,null,null,null,null,null,0,0]
[null,null,null,null,null,null,null,0,{"$f":"H525*G525","v":0}]
[null,null,null,null,null,null,null,0,0]
[null,null,null,null,null,null,null,0,0]
[null,null,null,null,null,null,null,0,0]
[null,null,null,null,null,null,null,0,0]
[null,null,null,null,null,null,null,0,0]
[null,null,null,null,null,null,null,0,0]
[null,null,null,null,null,null,null,0,0]
[null,null,null,null,null,null,null,0,0]
[null,null,null,null,null,null,null,0,0]
[null,null,null,null,null,null,null,0,0]
[null,null,null,null,null,null,null,0,0]
[null,null,null,null,null,null,null,0,0]
[null,null,null,null,null,null,null,0,0]
[null,null,null,null,null,null,null,0,0]
[null,null,null,null,null,null,null,0,0]
[null,null,null,null,null,null,null,0,0]
[null,null,null,null,null,null,null,0,0]
[null,null,null,null,null,null,null,0,0]
[null,null,null,null,null,null,null,0,0]
[null,null,null,null,null,null,null,0,0]
[null,null,null,null,null,null,null,0,0]
[null,null,null,null,null,null,null,0,0]
[null,null,null,null,null,null,null,0,0]
[null,null,null,null,null,null,null,0,0]
[null,null,null,null,null,null,null,0,0]
[null,null,null,null,null,null,null,0,0]
[null,null,null,null,null,null,null,0,0]
[null,null,null,null,null,null,null,0,0]
[null,null,null,null,null,null,null,0,0]
[null,null,null,null,null,null,null,0,0]
[null,null,null,null,null,null,null,0,0]
[null,null,null,null,null,null,null,0,0]
[null,null,null,null,null,null,null,0,0]
[null,null,null,null,null,null,null,0,0]
[null,null,null,null,null,null,null,0,0]
[null,null,null,null,null,null,null,0,0]
[null,null,null,null,null,null,null,0,0]
[null,null,null,null,null,null,null,0,0]
[null,null,null,null,null,null,null,0,0]
[null,null,null,null,null,null,null,0,0]
[null,null,null,null,null,null,null,0,0]
[null,null,null,null,null,null,null,0,0]
[null,null,null,null,null,null,null,0,0]
[null,null,null,null,null,null,null,0,0]
[null,null,null,null,null,null,null,0,0]
[null,null,null,null,null,null,null,0,0]
[null,null,null,null,null,null,null,0,0]
[null,null,null,null,null,null,null,0,0]
[null,null,null,null,null,null,null,0,0]
[null,null,null,null,null,null,null,0,0]
[null,null,null,null,null,null,null,0,0]
[null,null,null,null,null,null,null,0,0]
[null,null,null,null,null,null,null,0,0]
[null,null,null,null,null,null,null,0,0]
[null,null,null,null,null,null,null,0,0]
[null,null,null,null,null,null,null,0,0]
[null,null,null,null,null,null,null,0,0]
[null,null,null,null,null,null,null,0,0]
[null,null,null,null,null,null,null,0,0]
[null,null,null,null,null,null,null,0,0]
[null,null,null,null,null,null,null,0,0]
[null,null,null,null,null,null,null,{"$f":"D587/F$7","v":0},0]
[null,null,null,null,null,null,null,0,0]
[null,null,null,null,null,null,null,0,{"$f":"H589*G589","v":0}]
[null,null,null,null,null,null,null,0,0]
[null,null,null,null,null,null,null,0,0]
[null,null,null,null,null,null,null,0,0]
[null,null,null,null,null,null,null,0,0]
[null,null,null,null,null,null,null,0,0]
[null,null,null,null,null,null,null,0,0]
[null,null,null,null,null,null,null,0,0]
[null,null,null,null,null,null,null,0,0]
[null,null,null,null,null,null,null,0,0]
[null,null,null,null,null,null,null,0,0]
[null,null,null,null,null,null,null,0,0]
[null,null,null,null,null,null,null,0,0]
[null,null,null,null,null,null,null,0,0]
[null,null,null,null,null,null,null,0,0]
[null,null,null,null,null,null,null,0,0]
[null,null,null,null,null,null,null,0,0]
[null,null,null,null,null,null,null,0,0]
[null,null,null,null,null,null,null,0,0]
[null,null,null,null,null,null,null,0,0]
[null,null,null,null,null,null,null,0,0]
[null,null,null,null,null,null,null,0,0]
[null,null,null,null,null,null,null,0,0]
[null,null,null,null,null,null,null,0,0]
[null,null,null,null,null,null,null,0,0]
[null,null,null,null,null,null,null,0,0]
[null,null,null,null,null,null,null,0,0]
[null,null,null,null,null,null,null,0,0]
[null,null,null,null,null,null,null,0,0]
[null,null,null,null,null,null,null,0,0]
[null,null,null,null,null,null,null,0,0]
[null,null,null,null,null,null,null,0,0]
[null,null,null,null,null,null,null,0,0]
[null,null,null,null,null,null,null,0,0]
[null,null,null,null,null,null,null,0,0]
[null,null,null,null,null,null,null,0,0]
[null,null,null,null,null,null,null,0,0]
[null,null,null,null,null,null,null,0,0]
[null,null,null,null,null,null,null,0,0]
[null,null,null,null,null,null,null,0,0]
[null,null,null,null,null,null,null,0,0]
[null,null,null,null,null,null,null,0,0]
[null,null,null,null,null,null,null,0,0]
[null,null,null,null,null,null,null,0,0]
[null,null,null,null,null,null,null,0,0]
[null,null,null,null,null,null,null,0,0]
[null,null,null,null,null,null,null,0,0]
[null,null,null,null,null,null,null,0,0]
[null,null,null,null,null,null,null,0,0]
[null,null,null,null,null,null,null,0,0]
[null,null,null,null,null,null,null,0,0]
[null,null,null,null,null,null,null,0,0]
[null,null,null,null,null,null,null,0,0]
[null,null,null,null,null,null,null,0,0]
[null,null,null,null,null,null,null,0,0]
[null,null,null,null,null,null,null,0,0]
[null,null,null,null,null,null,null,0,0]
[null,null,null,null,null,null,null,0,0]
[null,null,null,null,null,null,null,0,0]
[null,null,null,null,null,null,null,0,0]
[null,null,null,null,null,null,null,0,0]
[null,null,null,null,null,null,null,0,0]
[null,null,null,null,null,null,null,{"$f":"D651/F$7","v":0},0]
[null,null,null,null,null,null,null,0,0]
[null,null,null,null,null,null,null,0,{"$f":"H653*G653","v":0}]
[null,null,null,null,null,null,null,0,0]
[null,null,null,null,null,null,null,0,0]
[null,null,null,null,null,null,null,0,0]
[null,null,null,null,null,null,null,0,0]
[null,null,null,null,null,null,null,0,0]
[null,null,null,null,null,null,null,0,0]
[null,null,null,null,null,null,null,0,0]
[null,null,null,null,null,null,null,0,0]
[null,null,null,null,null,null,null,0,0]
[null,null,null,null,null,null,null,0,0]
[null,null,null,null,null,null,null,0,0]
[null,null,null,null,null,null,null,0,0]
[null,null,null,null,null,null,null,0,0]
[null,null,null,null,null,null,null,0,0]
[null,null,null,null,null,null,null,0,0]
[null,null,null,null,null,null,null,0,0]
[null,null,null,null,null,null,null,0,0]
[null,null,null,null,null,null,null,0,0]
[null,null,null,null,null,null,null,0,0]
[null,null,null,null,null,null,null,0,0]
[null,null,null,null,null,null,null,0,0]
[null,null,null,null,null,null,null,0,0]
[null,null,null,null,null,null,null,0,0]
[null,null,null,null,null,null,null,0,0]
[null,null,null,null,null,null,null,0,0]
[null,null,null,null,null,null,null,0,0]
[null,null,null,null,null,null,null,0,0]
[null,null,null,null,null,null,null,0,0]
[null,null,null,null,null,null,null,0,0]
[null,null,null,null,null,null,null,0,0]
[null,null,null,null,null,null,null,0,0]
[null,null,null,null,null,null,null,0,0]
[null,null,null,null,null,null,null,0,0]
[null,null,null,null,null,null,null,0,0]
[null,null,null,null,null,null,null,0,0]
[null,null,null,null,null,null,null,0,0]
[null,null,null,null,null,null,null,0,0]
[null,null,null,null,null,null,null,0,0]
[null,null,null,null,null,null,null,0,0]
[null,null,null,null,null,null,null,0,0]
[null,null,null,null,null,null,null,0,0]
[null,null,null,null,null,null,null,0,0]
[null,null,null,null,null,null,null,0,0]
[null,null,null,null,null,null,null,0,0]
[null,null,null,null,null,null,null,0,0]
[null,null,null,null,null,null,null,0,0]
[null,null,null,null,null,null,null,0,0]
[null,null,null,null,null,null,null,0,0]
[null,null,null,null,null,null,null,0,0]
[null,null,null,null,null,null,null,0,0]
[null,null,null,null,null,null,null,0,0]
[null,null,null,null,null,null,null,0,0]
[null,null,null,null,null,null,null,0,0]
[null,null,null,null,null,null,null,0,0]
[null,null,null,null,null,null,null,0,0]
[null,null,null,null,null,null,null,0,0]
[null,null,null,null,null,null,null,0,0]
[null,null,null,null,null,null,null,0,0]
[null,null,null,null,null,null,null,0,0]
[null,null,null,null,null,null,null,0,0]
[null,null,null,null,null,null,null,0,0]
[null,null,null,null,null,null,null,{"$f":"D715/F$7","v":0},0]
[null,null,null,null,null,null,null,0,0]
[null,null,null,null,null,null,null,0,{"$f":"H717*G717","v":0}]
[null,null,null,null,null,null,null,0,0]
[null,null,null,null,null,null,null,0,0]
[null,null,null,null,null,null,null,0,0]
[null,null,null,null,null,null,null,0,0]
[null,null,null,null,null,null,null,0,0]
[null,null,null,null,null,null,null,0,0]
[null,null,null,null,null,null,null,0,0]
[null,null,null,null,null,null,null,0,0]
[null,null,null,null,null,null,null,0,0]
[null,null,null,null,null,null,null,0,0]
[null,null,null,null,null,null,null,0,0]
[null,null,null,null,null,null,null,0,0]
[null,null,null,null,null,null,null,0,0]
[null,null,null,null,null,null,null,0,0]
[null,null,null,null,null,null,null,0,0]
[null,null,null,null,null,null,null,0,0]
[null,null,null,null,null,null,null,0,0]
[null,null,null,null,null,null,null,0,0]
[null,null,null,null,null,null,null,0,0]
[null,null,null,null,null,null,null,0,0]
[null,null,null,null,null,null,null,0,0]
[null,null,null,null,null,null,null,0,0]
[null,null,null,null,null,null,null,0,0]
[null,null,null,null,null,null,null,0,0]
[null,null,null,null,null,null,null,0,0]
[null,null,null,null,null,null,null,0,0]
[null,null,null,null,null,null,null,0,0]
[null,null,null,null,null,null,null,0,0]
[null,null,null,null,null,null,null,0,0]
[null,null,null,null,null,null,null,0,0]
[null,null,null,null,null,null,null,0,0]
[null,null,null,null,null,null,null,0,0]
[null,null,null,null,null,null,null,0,0]
[null,null,null,null,null,null,null,0,0]
[null,null,null,null,null,null,null,0,0]
[null,null,null,null,null,null,null,0,0]
[null,null,null,null,null,null,null,0,0]
[null,null,null,null,null,null,null,0,0]
[null,null,null,null,null,null,null,0,0]
[null,null,null,null,null,null,null,0,0]
[null,null,null,null,null,null,null,0,0]
[null,null,null,null,null,null,null,0,0]
[null,null,null,null,null,null,null,0,0]
[null,null,null,null,null,null,null,0,0]
[null,null,null,null,null,null,null,0,0]
[null,null,null,null,null,null,null,0,0]
[null,null,null,null,null,null,null,0,0]
[null,null,null,null,null,null,null,0,0]
[null,null,null,null,null,null,null,0,0]
[null,null,null,null,null,null,null,0,0]
[null,null,null,null,null,null,null,0,0]
[null,null,null,null,null,null,null,0,0]
[null,null,null,null,null,null,null,0,0]
[null,null,null,null,null,null,null,0,0]
[null,null,null,null,null,null,null,0,0]
[null,null,null,null,null,null,null,0,0]
[null,null,null,null,null,null,null,0,0]
[null,null,null,null,null,null,null,0,0]
[null,null,null,null,null,null,null,0,0]
[null,null,null,null,null,null,null,0,0]
[null,null,null,null,null,null,null,0,0]
[null,null,null,null,null,null,null,{"$f":"D779/F$7","v":0},0]
[null,null,null,null,null,null,null,0,0]
[null,null,null,null,null,null,null,0,{"$f":"H781*G781","v":0}]
[null,null,null,null,null,null,null,0,0]
[null,null,null,null,null,null,null,0,0]
[null,null,null,null,null,null,null,0,0]
[null,null,null,null,null,null,null,0,0]
[null,null,null,null,null,null,null,0,0]
[null,null,null,null,null,null,null,0,0]
[null,null,null,null,null,null,null,0,0]
[null,null,null,null,null,null,null,0,0]
[null,null,null,null,null,null,null,0,0]
[null,null,null,null,null,null,null,0,0]
[null,null,null,null,null,null,null,0,0]
[null,null,null,null,null,null,null,0,0]
[null,null,null,null,null,null,null,0,0]
[null,null,null,null,null,null,null,0,0]
[null,null,null,null,null,null,null,0,0]
[null,null,null,null,null,null,null,0,0]
[null,null,null,null,null,null,null,0,0]
[null,null,null,null,null,null,null,0,0]
[null,null,null,null,null,null,null,0,0]
[null,null,null,null,null,null,null,0,0]
[null,null,null,null,null,null,null,0,0]
[null,null,null,null,null,null,null,0,0]
[null,null,null,null,null,null,null,0,0]
[null,null,null,null,null,null,null,0,0]
[null,null,null,null,null,null,null,0,0]
[null,null,null,null,null,null,null,0,0]
[null,null,null,null,null,null,null,0,0]
[null,null,null,null,null,null,null,0,0]
[null,null,null,null,null,null,null,0,0]
[null,null,null,null,null,null,null,0,0]
[null,null,null,null,null,null,null,0,0]
[null,null,null,null,null,null,null,0,0]
[null,null,null,null,null,null,null,0,0]
[null,null,null,null,null,null,null,0,0]
[null,null,null,null,null,null,null,0,0]
[null,null,null,null,null,null,null,0,0]
[null,null,null,null,null,null,null,0,0]
[null,null,null,null,null,null,null,0,0]
[null,null,null,null,null,null,null,0,0]
[null,null,null,null,null,null,null,0,0]
[null,null,null,null,null,null,null,0,0]
[null,null,null,null,null,null,null,0,0]
[null,null,null,null,null,null,null,0,0]
[null,null,null,null,null,null,null,0,0]
[null,null,null,null,null,null,null,0,0]
[null,null,null,null,null,null,null,0,0]
[null,null,null,null,null,null,null,0,0]
[null,null,null,null,null,null,null,0,0]
[null,null,null,null,null,null,null,0,0]
[null,null,null,null,null,null,null,0,0]
[null,null,null,null,null,null,null,0,0]
[null,null,null,null,null,null,null,0,0]
[null,null,null,null,null,null,null,0,0]
[null,null,null,null,null,null,null,0,0]
[null,null,null,null,null,null,null,0,0]
[null,null,null,null,null,null,null,0,0]
[null,null,null,null,null,null,null,0,0]
[null,null,null,null,null,null,null,0,0]
[null,null,null,null,null,null,null,0,0]
[null,null,null,null,null,null,null,0,0]
[null,null,null,null,null,null,null,0,0]
[null,null,null,null,null,null,null,{"$f":"D843/F$7","v":0},0]
[null,null,null,null,null,null,null,0,0]
[null,null,null,null,null,null,null,0,{"$f":"H845*G845","v":0}]
[null,null,null,null,null,null,null,0,0]
[null,null,null,null,null,null,null,0,0]
[null,null,null,null,null,null,null,0,0]
[null,null,null,null,null,null,null,0,0]
[null,null,null,null,null,null,null,0,0]
[null,null,null,null,null,null,null,0,0]
[null,null,null,null,null,null,null,0,0]
[null,null,null,null,null,null,null,0,0]
[null,null,null,null,null,null,null,0,0]
[null,null,null,null,null,null,null,0,0]
[null,null,null,null,null,null,null,0,0]
[null,null,null,null,null,null,null,0,0]
[null,null,null,null,null,null,null,0,0]
[null,null,null,null,null,null,null,0,0]
[null,null,null,null,null,null,null,0,0]
[null,null,null,null,null,null,null,0,0]
[null,null,null,null,null,null,null,0,0]
[null,null,null,null,null,null,null,0,0]
[null,null,null,null,null,null,null,0,0]
[null,null,null,null,null,null,null,0,0]
[null,null,null,null,null,null,null,0,0]
[null,null,null,null,null,null,null,0,0]
[null,null,null,null,null,null,null,0,0]
[null,null,null,null,null,null,null,0,0]
[null,null,null,null,null,null,null,0,0]
[null,null,null,null,null,null,null,0,0]
[null,null,null,null,null,null,null,0,0]
[null,null,null,null,null,null,null,0,0]
[null,null,null,null,null,null,null,0,0]
[null,null,null,null,null,null,null,0,0]
[null,null,null,null,null,null,null,0,0]
[null,null,null,null,null,null,null,0,0]
[null,null,null,null,null,null,null,0,0]
[null,null,null,null,null,null,null,0,0]
[null,null,null,null,null,null,null,0,0]
[null,null,null,null,null,null,null,0,0]
[null,null,null,null,null,null,null,0,0]
[null,null,null,null,null,null,null,0,0]
[null,null,null,null,null,null,null,0,0]
[null,null,null,null,null,null,null,0,0]
[null,null,null,null,null,null,null,0,0]
[null,null,null,null,null,null,null,0,0]
[null,null,null,null,null,null,null,0,0]
[null,null,null,null,null,null,null,0,0]
[null,null,null,null,null,null,null,0,0]
[null,null,null,null,null,null,null,0,0]
[null,null,null,null,null,null,null,0,0]
[null,null,null,null,null,null,null,0,0]
[null,null,null,null,null,null,null,0,0]
[null,null,null,null,null,null,null,0,0]
[null,null,null,null,null,null,null,0,0]
[null,null,null,null,null,null,null,0,0]
[null,null,null,null,null,null,null,0,0]
[null,null,null,null,null,null,null,0,0]
[null,null,null,null,null,null,null,0,0]
[null,null,null,null,null,null,null,0,0]
[null,null,null,null,null,null,null,0,0]
[null,null,null,null,null,null,null,0,0]
[null,null,null,null,null,null,null,0,0]
[null,null,null,null,null,null,null,0,0]
[null,null,null,null,null,null,null,0,0]
[null,null,null,null,null,null,null,{"$f":"D907/F$7","v":0},0]
[null,null,null,null,null,null,null,0,0]
[null,null,null,null,null,null,null,0,{"$f":"H909*G909","v":0}]
[null,null,null,null,null,null,null,0,0]
[null,null,null,null,null,null,null,0,0]
[null,null,null,null,null,null,null,0,0]
[null,null,null,null,null,null,null,0,0]
[null,null,null,null,null,null,null,0,0]
[null,null,null,null,null,null,null,0,0]
[null,null,null,null,null,null,null,0,0]
[null,null,null,null,null,null,null,0,0]
[null,null,null,null,null,null,null,0,0]
[null,null,null,null,null,null,null,0,0]
[null,null,null,null,null,null,null,0,0]
[null,null,null,null,null,null,null,0,0]
[null,null,null,null,null,null,null,0,0]
[null,null,null,null,null,null,null,0,0]
[null,null,null,null,null,null,null,0,0]
[null,null,null,null,null,null,null,0,0]
[null,null,null,null,null,null,null,0,0]
[null,null,null,null,null,null,null,0,0]
[null,null,null,null,null,null,null,0,0]
[null,null,null,null,null,null,null,0,0]
[null,null,null,null,null,null,null,0,0]
[null,null,null,null,null,null,null,0,0]
[null,null,null,null,null,null,null,0,0]
[null,null,null,null,null,null,null,0,0]
[null,null,null,null,null,null,null,0,0]
[null,null,null,null,null,null,null,0,0]
[null,null,null,null,null,null,null,0,0]
[null,null,null,null,null,null,null,0,0]
[null,null,null,null,null,null,null,0,0]
[null,null,null,null,null,null,null,0,0]
[null,null,null,null,null,null,null,0,0]
[null,null,null,null,null,null,null,0,0]
[null,null,null,null,null,null,null,0,0]
[null,null,null,null,null,null,null,0,0]
[null,null,null,null,null,null,null,0,0]
[null,null,null,null,null,null,null,0,0]
[null,null,null,null,null,null,null,0,0]
[null,null,null,null,null,null,null,0,0]
[null,null,null,null,null,null,null,0,0]
[null,null,null,null,null,null,null,0,0]
[null,null,null,null,null,null,null,0,0]
[null,null,null,null,null,null,null,0,0]
[null,null,null,null,null,null,null,0,0]
[null,null,null,null,null,null,null,0,0]
[null,null,null,null,null,null,null,0,0]
[null,null,null,null,null,null,null,0,0]
[null,null,null,null,null,null,null,0,0]
[null,null,null,null,null,null,null,0,0]
[null,null,null,null,null,null,null,0,0]
[null,null,null,null,null,null,null,0,0]
[null,null,null,null,null,null,null,0,0]
[null,null,null,null,null,null,null,0,0]
[null,null,null,null,null,null,null,0,0]
[null,null,null,null,null,null,null,0,0]
[null,null,null,null,null,null,null,0,0]
[null,null,null,null,null,null,null,0,0]
[null,null,null,null,null,null,null,0,0]
[null,null,null,null,null,null,null,0,0]
[null,null,null,null,null,null,null,0,0]
[null,null,null,null,null,null,null,0,0]
[null,null,null,null,null,null,null,0,0]
[null,null,null,null,null,null,null,{"$f":"D971/F$7","v":0},0]
[null,null,null,null,null,null,null,0,0]
[null,null,null,null,null,null,null,0,{"$f":"H973*G973","v":0}]
[null,null,null,null,null,null,null,0,0]
[null,null,null,null,null,null,null,0,0]
[null,null,null,null,null,null,null,0,0]
[null,null,null,null,null,null,null,0,0]
[null,null,null,null,null,null,null,0,0]
[null,null,null,null,null,null,null,0,0]
[null,null,null,null,null,null,null,0,0]
[null,null,null,null,null,null,null,0,0]
[null,null,null,null,null,null,null,0,0]
[null,null,null,null,null,null,null,0,0]
[null,null,null,null,null,null,null,0,0]
[null,null,null,null,null,null,null,0,0]
[null,null,null,null,null,null,null,0,0]
[null,null,null,null,null,null,null,0,0]
[null,null,null,null,null,null,null,0,0]
[null,null,null,null,null,null,null,0,0]
[null,null,null,null,null,null,null,0,0]
[null,null,null,null,null,null,null,0,0]
[null,null,null,null,null,null,null,0,0]
[null,null,null,null,null,null,null,0,0]
[null,null,null,null,null,null,null,0,0]
[null,null,null,null,null,null,null,0,0]
[null,null,null,null,null,null,null,0,0]
[null,null,null,null,null,null,null,0,0]
[null,null,null,null,null,null,null,0,0]
[null,null,null,null,null,null,null,0,0]
[null,null,null,null,null,null,null,0,0]
[null,null,null,null,null,null,null,0,0]
[null,null,null,null,null,null,null,0,0]
[null,null,null,null,null,null,null,0,0]
[null,null,null,null,null,null,null,0,0]
[null,null,null,null,null,null,null,0,0]
[null,null,null,null,null,null,null,0,0]
[null,null,null,null,null,null,null,0,0]
[null,null,null,null,null,null,null,0,0]
[null,null,null,null,null,null,null,0,0]
[null,null,null,null,null,null,null,0,0]
[null,null,null,null,null,null,null,0,0]
[null,null,null,null,null,null,null,0,0]
[null,1,1,1,1,null,1,1,1,1,1]

{"sheet":"P4","index":20,"n_rows":18,"n_cols":5,"rows_kept":18,"cut":false,"hidden":false,"merged":[[0,0,9,0],[4,1,4,3],[5,1,5,3],[6,1,6,3],[7,1,7,3],[8,1,8,3],[9,1,9,3],[12,0,12,3],[13,0,13,3],[14,0,14,3],[15,0,15,3],[16,0,16,3]]}
[null,"Does the product/service fulfil the requirement?",null,null,"Please select status"]
[null,"Applicant:","Please select status",null,"Yes, 1 point"]
[null,"Evaluator:","Please select status",null,"Yes, 2 points"]
[null,"Reviewer:","Please select status",null,"No"]
[null,"Comments from the applicant (on delivered documentation)  ",null,null,"Documentation missing"]
[null,"Describe how the fund fulfils this requirement and refer to the document(s) that verifies this.",null,null,"N.A."]
[null,"Comments from the evaluator (for the summary of requirements)"]
[]
[null,"Comments from the evaluator (on delivered documentation)"]
[]
["Documentation:"]
["Names of the documents that verify compliance with the requirement (filled out by the applicant)"]
["Examplefile_date.pdf"]
[]
[]
[]
[]
[null,null,{"$f":"IFERROR(VLOOKUP(\"activesheetname\",#REF!,3),\"\")","v":""},{"$f":"IFERROR(VLOOKUP(\"activesheetname\",#REF!,4),\"\")","v":""},"No"]

{"sheet":"P5","index":21,"n_rows":18,"n_cols":5,"rows_kept":18,"cut":false,"hidden":false,"merged":[[0,0,9,0],[4,1,4,3],[5,1,5,3],[6,1,6,3],[7,1,7,3],[8,1,8,3],[9,1,9,3],[12,0,12,3],[13,0,13,3],[14,0,14,3],[15,0,15,3],[16,0,16,3]]}
[null,"Does the product/service fulfil the requirement?",null,null,"Please select status"]
[null,"Applicant:","Please select status",null,"Yes, 1 point"]
[null,"Evaluator:","Please select status",null,"Yes, 2 points"]
[null,"Reviewer:","Please select status",null,"No"]
[null,"Comments from the applicant (on delivered documentation)  ",null,null,"Documentation missing"]
[null,"Describe how the fund fulfils this requirement and refer to the document(s) that verifies this.",null,null,"N.A."]
[null,"Comments from the evaluator (for the summary of requirements)"]
[]
[null,"Comments from the evaluator (on delivered documentation)"]
[]
["Documentation:"]
["Names of the documents that verify compliance with the requirement (filled out by the applicant)"]
["Examplefile_date.pdf"]
[]
[]
[]
[]
[null,null,{"$f":"IFERROR(VLOOKUP(\"activesheetname\",#REF!,3),\"\")","v":""},{"$f":"IFERROR(VLOOKUP(\"activesheetname\",#REF!,4),\"\")","v":""},"No"]

{"sheet":"P6","index":22,"n_rows":18,"n_cols":5,"rows_kept":18,"cut":false,"hidden":false,"merged":[[0,0,9,0],[4,1,4,3],[5,1,5,3],[6,1,6,3],[7,1,7,3],[8,1,8,3],[9,1,9,3],[12,0,12,3],[13,0,13,3],[14,0,14,3],[15,0,15,3],[16,0,16,3]]}
[null,"Does the product/service fulfil the requirement?",null,null,"Please select status"]
[null,"Applicant:","Please select status",null,"Yes, 1 point"]
[null,"Evaluator:","Please select status",null,"Yes, 2 points"]
[null,"Reviewer:","Please select status",null,"No"]
[null,"Comments from the applicant (on delivered documentation)  ",null,null,"Documentation missing"]
[null,"Describe how the fund fulfils this requirement and refer to the document(s) that verifies this.",null,null,"N.A."]
[null,"Comments from the evaluator (for the summary of requirements)"]
[]
[null,"Comments from the evaluator (on delivered documentation)"]
[]
["Documentation:"]
["Names of the documents that verify compliance with the requirement (filled out by the applicant)"]
["Examplefile_date.pdf"]
[]
[]
[]
[]
[null,null,{"$f":"IFERROR(VLOOKUP(\"activesheetname\",#REF!,3),\"\")","v":""},{"$f":"IFERROR(VLOOKUP(\"activesheetname\",#REF!,4),\"\")","v":""},"No"]

{"sheet":"O15","index":23,"n_rows":18,"n_cols":5,"rows_kept":18,"cut":false,"hidden":false,"merged":[[0,0,9,0],[4,1,4,3],[5,1,5,3],[6,1,6,3],[7,1,7,3],[8,1,8,3],[9,1,9,3],[12,0,12,3],[13,0,13,3],[14,0,14,3],[15,0,15,3],[16,0,16,3]]}
[null,"Does the product/service fulfil the requirement?",null,null,"Please select status"]
[null,"Applicant:","Please select status",null,"Yes"]
[null,"Evaluator:","Please select status",null,"No"]
[null,"Reviewer:","Please select status",null,"Documentation missing"]
[null,"Comments from the applicant (on delivered documentation)  ",null,null,"N.A."]
[null,"Describe how the fund fulfils this requirement and refer to the document(s) that verifies this."]
[null,"Comments from the evaluator (for the summary of requirements)"]
[]
[null,"Comments from the evaluator (on delivered documentation)"]
[]
["Documentation:"]
["Names of the documents that verify compliance with the requirement (filled out by the applicant)"]
["Examplefile_date.pdf"]
[]
[]
[]
[]
[null,null,{"$f":"IFERROR(VLOOKUP(\"activesheetname\",#REF!,3),\"\")","v":""},{"$f":"IFERROR(VLOOKUP(\"activesheetname\",#REF!,4),\"\")","v":""},"No"]

{"sheet":"P7","index":24,"n_rows":18,"n_cols":5,"rows_kept":18,"cut":false,"hidden":false,"merged":[[0,0,9,0],[4,1,4,3],[5,1,5,3],[6,1,6,3],[7,1,7,3],[8,1,8,3],[9,1,9,3],[12,0,12,3],[13,0,13,3],[14,0,14,3],[15,0,15,3],[16,0,16,3]]}
[null,"Does the product/service fulfil the requirement?",null,null,"Please select status"]
[null,"Applicant:","Please select status",null,"Yes, 1 point"]
[null,"Evaluator:","Please select status",null,"Yes, 2 points"]
[null,"Reviewer:","Please select status",null,"No"]
[null,"Comments from the applicant (on delivered documentation)  ",null,null,"Documentation missing"]
[null,"Describe how the fund fulfils this requirement and refer to the document(s) that verifies this.",null,null,"N.A."]
[null,"Comments from the evaluator (for the summary of requirements)"]
[]
[null,"Comments from the evaluator (on delivered documentation)"]
[]
["Documentation:"]
["Names of the documents that verify compliance with the requirement (filled out by the applicant)"]
["Examplefile_date.pdf"]
[]
[]
[]
[]
[null,null,{"$f":"IFERROR(VLOOKUP(\"activesheetname\",#REF!,3),\"\")","v":""},{"$f":"IFERROR(VLOOKUP(\"activesheetname\",#REF!,4),\"\")","v":""},"No"]

{"sheet":"P8","index":25,"n_rows":18,"n_cols":5,"rows_kept":18,"cut":false,"hidden":false,"merged":[[0,0,9,0],[4,1,4,3],[5,1,5,3],[6,1,6,3],[7,1,7,3],[8,1,8,3],[9,1,9,3],[12,0,12,3],[13,0,13,3],[14,0,14,3],[15,0,15,3],[16,0,16,3]]}
[null,"Does the product/service fulfil the requirement?",null,null,"Please select status"]
[null,"Applicant:","Please select status",null,"Yes, 1 point"]
[null,"Evaluator:","Please select status",null,"No"]
[null,"Reviewer:","Please select status",null,"Documentation missing"]
[null,"Comments from the applicant (on delivered documentation)  ",null,null,"N.A."]
[null,"Describe how the fund fulfils this requirement and refer to the document(s) that verifies this."]
[null,"Comments from the evaluator (for the summary of requirements)"]
[]
[null,"Comments from the evaluator (on delivered documentation)"]
[]
["Documentation:"]
["Names of the documents that verify compliance with the requirement (filled out by the applicant)"]
["Examplefile_date.pdf"]
[]
[]
[]
[]
[null,null,{"$f":"IFERROR(VLOOKUP(\"activesheetname\",#REF!,3),\"\")","v":""},{"$f":"IFERROR(VLOOKUP(\"activesheetname\",#REF!,4),\"\")","v":""},"No"]

{"sheet":"O16","index":26,"n_rows":18,"n_cols":5,"rows_kept":18,"cut":false,"hidden":false,"merged":[[0,0,9,0],[4,1,4,3],[5,1,5,3],[6,1,6,3],[7,1,7,3],[8,1,8,3],[9,1,9,3],[12,0,12,3],[13,0,13,3],[14,0,14,3],[15,0,15,3],[16,0,16,3]]}
[null,"Does the product/service fulfil the requirement?",null,null,"Please select status"]
[null,"Applicant:","Please select status",null,"Yes"]
[null,"Evaluator:","Please select status",null,"No"]
[null,"Reviewer:","Please select status",null,"Documentation missing"]
[null,"Comments from the applicant (on delivered documentation)  ",null,null,"N.A."]
[null,"Describe how the fund fulfils this requirement and refer to the document(s) that verifies this."]
[null,"Comments from the evaluator (for the summary of requirements)"]
[]
[null,"Comments from the evaluator (on delivered documentation)"]
[]
["Documentation:"]
["Names of the documents that verify compliance with the requirement (filled out by the applicant)"]
["Examplefile_date.pdf"]
[]
[]
[]
[]
[null,null,{"$f":"IFERROR(VLOOKUP(\"activesheetname\",#REF!,3),\"\")","v":""},{"$f":"IFERROR(VLOOKUP(\"activesheetname\",#REF!,4),\"\")","v":""},"No"]

{"sheet":"O17-18","index":27,"n_rows":18,"n_cols":5,"rows_kept":18,"cut":false,"hidden":false,"merged":[[0,0,9,0],[4,1,4,3],[5,1,5,3],[6,1,6,3],[7,1,7,3],[8,1,8,3],[9,1,9,3],[12,0,12,3],[13,0,13,3],[14,0,14,3],[15,0,15,3],[16,0,16,3]]}
[null,"Does the product/service fulfil the requirements?",null,null,"Please select status"]
[null,"Applicant:","Please select status",null,"Yes"]
[null,"Evaluator:","Please select status",null,"No"]
[null,"Reviewer:","Please select status",null,"Documentation missing"]
[null,"Comments from the applicant (on delivered documentation)  ",null,null,"N.A."]
[null,"Describe how the fund fulfils requirements O17-O18 and refer to the document(s) that verifies this."]
[null,"Comments from the evaluator (for the summary of requirements)"]
[]
[null,"Comments from the evaluator (on delivered documentation)"]
[]
["Documentation:"]
["Names of the documents that verify compliance with the requirement (filled out by the applicant)"]
["Examplefile_date.pdf"]
[]
[]
[]
[]
[null,null,{"$f":"IFERROR(VLOOKUP(\"activesheetname\",#REF!,3),\"\")","v":""},{"$f":"IFERROR(VLOOKUP(\"activesheetname\",#REF!,4),\"\")","v":""},"No"]

{"sheet":"O19-20","index":28,"n_rows":18,"n_cols":5,"rows_kept":18,"cut":false,"hidden":false,"merged":[[0,0,9,0],[4,1,4,3],[5,1,5,3],[6,1,6,3],[7,1,7,3],[8,1,8,3],[9,1,9,3],[12,0,12,3],[13,0,13,3],[14,0,14,3],[15,0,15,3],[16,0,16,3]]}
[null,"Does the product/service fulfil the requirement?",null,null,"Please select status"]
[null,"Applicant:","Please select status",null,"Yes"]
[null,"Evaluator:","Please select status",null,"No"]
[null,"Reviewer:","Please select status",null,"Documentation missing"]
[null,"Comments from the applicant (on delivered documentation)  ",null,null,"N.A."]
[null,"Describe how the fund fulfils requirements O19-O20 and refer to the document(s) that verifies this."]
[null,"Comments from the evaluator (for the summary of requirements)"]
[]
[null,"Comments from the evaluator (on delivered documentation)"]
[]
["Documentation:"]
["Names of the documents that verify compliance with the requirement (filled out by the applicant)"]
["Examplefile_date.pdf"]
[]
[]
[]
[]
[null,null,{"$f":"IFERROR(VLOOKUP(\"activesheetname\",#REF!,3),\"\")","v":""},{"$f":"IFERROR(VLOOKUP(\"activesheetname\",#REF!,4),\"\")","v":""},"No"]

{"sheet":"O21","index":29,"n_rows":18,"n_cols":5,"rows_kept":18,"cut":false,"hidden":false,"merged":[[0,0,9,0],[4,1,4,3],[5,1,5,3],[6,1,6,3],[7,1,7,3],[8,1,8,3],[9,1,9,3],[12,0,12,3],[13,0,13,3],[14,0,14,3],[15,0,15,3],[16,0,16,3]]}
[null,"Does the product/service fulfil the requirement?",null,null,"Please select status"]
[null,"Applicant:","Please select status",null,"Yes"]
[null,"Evaluator:","Please select status",null,"No"]
[null,"Reviewer:","Please select status",null,"Documentation missing"]
[null,"Comments from the applicant (on delivered documentation)  ",null,null,"N.A."]
[null,"Describe how the fund fulfils this requirement and refer to the document(s) that verifies this."]
[null,"Comments from the evaluator (for the summary of requirements)"]
[]
[null,"Comments from the evaluator (on delivered documentation)"]
[]
["Documentation:"]
["Names of the documents that verify compliance with the requirement (filled out by the applicant)"]
["Examplefile_date.pdf"]
[]
[]
[]
[]
[null,null,{"$f":"IFERROR(VLOOKUP(\"activesheetname\",#REF!,3),\"\")","v":""},{"$f":"IFERROR(VLOOKUP(\"activesheetname\",#REF!,4),\"\")","v":""},"No"]

{"sheet":"O22-24","index":30,"n_rows":18,"n_cols":5,"rows_kept":18,"cut":false,"hidden":false,"merged":[[0,0,9,0],[4,1,4,3],[5,1,5,3],[6,1,6,3],[7,1,7,3],[8,1,8,3],[9,1,9,3],[12,0,12,3],[13,0,13,3],[14,0,14,3],[15,0,15,3],[16,0,16,3]]}
[null,"Does the product/service fulfil the requirements?",null,null,"Please select status"]
[null,"Applicant:","Please select status",null,"Yes"]
[null,"Evaluator:","Please select status",null,"No"]
[null,"Reviewer:","Please select status",null,"Documentation missing"]
[null,"Comments from the applicant (on delivered documentation)  ",null,null,"N.A."]
[null,"Describe how the fund fulfils requirements O22-O24 and refer to the document(s) that verifies this."]
[null,"Comments from the evaluator (for the summary of requirements)"]
[]
[null,"Comments from the evaluator (on delivered documentation)"]
[]
["Documentation:"]
["Names of the documents that verify compliance with the requirement (filled out by the applicant)"]
["Examplefile_date.pdf"]
[]
[]
[]
[]
[null,null,{"$f":"IFERROR(VLOOKUP(\"activesheetname\",#REF!,3),\"\")","v":""},{"$f":"IFERROR(VLOOKUP(\"activesheetname\",#REF!,4),\"\")","v":""},"No"]

{"sheet":"O25","index":31,"n_rows":18,"n_cols":5,"rows_kept":18,"cut":false,"hidden":false,"merged":[[0,0,9,0],[4,1,4,3],[5,1,5,3],[6,1,6,3],[7,1,7,3],[8,1,8,3],[9,1,9,3],[12,0,12,3],[13,0,13,3],[14,0,14,3],[15,0,15,3],[16,0,16,3]]}
[null,"Does the product/service fulfil the requirement?",null,null,"Please select status"]
[null,"Applicant:","Please select status",null,"Yes"]
[null,"Evaluator:","Please select status",null,"No"]
[null,"Reviewer:","Please select status",null,"Documentation missing"]
[null,"Comments from the applicant (on delivered documentation)  ",null,null,"N.A."]
[null,{"$f":"\"The fund scores a total of \" &'O25 calculation'!C11&  \" points.\"","v":"The fund scores a total of 0 points."}]
[null,"Comments from the evaluator (for the summary of requirements)"]
[]
[null,"Comments from the evaluator (on delivered documentation)"]
[]
["Documentation:"]
["Names of the documents that verify compliance with the requirement (filled out by the applicant)"]
["Examplefile_date.pdf"]
[]
[]
[]
[]
[null,null,{"$f":"IFERROR(VLOOKUP(\"activesheetname\",#REF!,3),\"\")","v":""},{"$f":"IFERROR(VLOOKUP(\"activesheetname\",#REF!,4),\"\")","v":""},"No"]

{"sheet":"O25 calculation","index":32,"n_rows":11,"n_cols":7,"rows_kept":11,"cut":false,"hidden":true,"merged":[]}
["Points requirements",null,"Points summary"]
[null,"Name of points requirement","Applicant","Evaluator","Reviewer","Maximum number of points","Comments"]
["P1","GMO crops",{"$f":"IF(INDIRECT(\"'\"&$A3&\"'!C2\")=\"Yes, 1 point\",1,0)+IF(INDIRECT(\"'\"&$A3&\"'!C2\")=\"Yes, 2 points\",2,0)+IF(INDIRECT(\"'\"&$A3&\"'!C2\")=\"Yes, 3 points\",3,0)+IF(INDIRECT(\"'\"&$A3&\"'!C2\")=\"Yes, 4 points\",4,0)","v":0},{"$f":"IF(INDIRECT(\"'\"&$A3&\"'!C3\")=\"Yes, 1 point\",1,0)+IF(INDIRECT(\"'\"&$A3&\"'!C3\")=\"Yes, 2 points\",2,0)+IF(INDIRECT(\"'\"&$A3&\"'!C3\")=\"Yes, 3 points\",3,0)+IF(INDIRECT(\"'\"&$A3&\"'!C3\")=\"Yes, 4 points\",4,0)","v":0},{"$f":"IF(INDIRECT(\"'\"&$A3&\"'!C4\")=\"Yes, 1 point\",1,0)+IF(INDIRECT(\"'\"&$A3&\"'!C4\")=\"Yes, 2 points\",2,0)+IF(INDIRECT(\"'\"&$A3&\"'!C4\")=\"Yes, 3 points\",3,0)+IF(INDIRECT(\"'\"&$A3&\"'!C4\")=\"Yes, 4 points\",4,0)","v":0},1,{"$f":"IF(INDIRECT(\"'\"&A3&\"'!B8\")=0,\"\",INDIRECT(\"'\"&A3&\"'!B8\"))","v":""}]
["P2","ESG analysis - points score",{"$f":"IF(INDIRECT(\"'\"&A4&\"'!C2\")=\"Yes, 1 point\",1,0)+IF(INDIRECT(\"'\"&A4&\"'!C2\")=\"Yes, 2 points\",2,0)+IF(INDIRECT(\"'\"&A4&\"'!C2\")=\"Yes, 3 points\",3,0)+IF(INDIRECT(\"'\"&A4&\"'!C2\")=\"Yes, 4 points\",4,0)","v":0},{"$f":"IF(INDIRECT(\"'\"&$A4&\"'!C3\")=\"Yes, 1 point\",1,0)+IF(INDIRECT(\"'\"&$A4&\"'!C3\")=\"Yes, 2 points\",2,0)+IF(INDIRECT(\"'\"&$A4&\"'!C3\")=\"Yes, 3 points\",3,0)+IF(INDIRECT(\"'\"&$A4&\"'!C3\")=\"Yes, 4 points\",4,0)","v":0},{"$f":"IF(INDIRECT(\"'\"&$A4&\"'!C4\")=\"Yes, 1 point\",1,0)+IF(INDIRECT(\"'\"&$A4&\"'!C4\")=\"Yes, 2 points\",2,0)+IF(INDIRECT(\"'\"&$A4&\"'!C4\")=\"Yes, 3 points\",3,0)+IF(INDIRECT(\"'\"&$A4&\"'!C4\")=\"Yes, 4 points\",4,0)","v":0},2,{"$f":"IF(INDIRECT(\"'\"&A4&\"'!B8\")=0,\"\",INDIRECT(\"'\"&A4&\"'!B8\"))","v":""}]
["P3","Environmental focus",0,0,0,4,""]
["P4","Inclusion/exclusion criteria for indirect holdings",0,0,0,2,""]
["P5","Regular voting",0,0,0,2,""]
["P6","Engagement and company dialogue",0,0,0,2,""]
["P7","Additional reporting",0,0,0,2,""]
["P8","Third-party verification of sustainability reports",0,0,0,1,""]
["Sum P",null,{"$f":"SUM(C3:C10)","v":0},{"$f":"SUM(D3:D10)","v":0},{"$f":"SUM(E3:E10)","v":0},{"$f":"SUM(F3:F10)","v":16}]